{"text_format":"1","workbook":"xlsx","n_sheets":2,"sheets":["Data","Как должно получиться"],"not_rendered":{"charts":0,"images":0,"macros":1,"external_links":0,"defined_names":1,"comments":0,"pivot_tables":0},"unopened":[],"bounds":{"document_bytes":16777216,"sheet_cells":100000,"rows_first":2000,"rows_last":500,"rows_between":2000,"halvings":0,"cell_chars":16384,"cell_head_chars":4096},"cells_cut":0,"cells_raw":0,"read":"whole","date_system":"1900"}

{"sheet":"Data","index":0,"n_rows":11,"n_cols":12,"rows_kept":11,"cut":false,"hidden":false,"merged":[]}
[]
["TPumpObj","DAB","K","-","-","K 11/500","ALL","\r\nOBJECT\tPUMP\r\nIDENT\tK 11/500\r\nNEWID\t{CHARSFDPN[Kl];;;0} {CHARSFDPN[M];;;0}\r\nSHORTNAME\tDAB\r\nDATA\tK monogirante completo\tK monogirante breve\t\r\nLIMITIND\t0\t0\r\nLIMIT\tTminfluido\t1\t[P]\t6\t32\t0\t\t-15\t-15\r\nLIMIT\tTmaxfluido\t1\t[P]\t6\t32\t0\t\t110\t110\r\nLIMIT\tTmaxambiente\t1\t[P]\t6\t32\t0\t\t40\t40\r\nPAGENO\t5\r\nSERIES\tK\r\nDATASHEET\tDAB - scheda tecnica pompe centrifughe K\tDAB - hydraulic\tDAB - dimension  -\t\t\r\nPERFORMANCECHART\t\tK 11/500\r\nTYPE\t3\tAll\t\r\nSAFETYMARGIN\t5\t1\t0\t1\r\nRESISTANCE\t0\r\nMATERIALKEY\tK -- E\t0\r\nGRIDCOLUMNS\tARTNR[P]\r\nGRIDCOLUMNS\tP_STG[Kl]\r\nGRIDCOLUMNS\tM_PHASE[M]\r\nGRIDCOLUMNS\tPOWER[M]\r\nGRIDCOLUMNS\tPOLES[M]\r\nGRIDCOLUMNS\tNAME[DNs]\r\nGRIDCOLUMNS\tNAME[DNd]\r\nMEASUREMENT\tA\t440\r\nMEASUREMENT\tB\t240\r\nMEASUREMENT\tC\t62\r\nMEASUREMENT\tDNA\t2\" 1/2\r\nMEASUREMENT\tDNM\t2\"\r\nMEASUREMENT\tE\t100\r\nMEASUREMENT\tG\t155\r\nMEASUREMENT\tH\t312\r\nMEASUREMENT\tH1\t132\r\nMEASUREMENT\tH2\t180\r\nMEASUREMENT\tIØ\t14\r\nOPTION\t1\r\nORIFICELIMIT\t0,1\t0,9\t0\r\n\r\nOBJECT\tINSTALLATION\r\nIDENT\tPompe centrifughe monogirante ad asse orizzontale\r\nSHORTNAME\tDAB\r\nFILENAME\tK 14400_ingombro\r\nWEIGHT\t33,2\r\nLIMITIND\t0\t0\r\nLIMIT\tMEDT\t1\t[AW]\t6\t11\t1\t\t-15\t110\r\nWEIGHTFORMULA\t$Wg :=$Wg[P] + $Wg[AV]\r\nFIELDS\t\t0\t0\r\nHIDECOMP\t[AV]\r\nHIDECOMP\t[DN]\r\nHIDECOMP\t[DNd]\r\nHIDECOMP\t[DNs]\r\nHIDECOMP\t[M]\r\nHIDECOMP\t[Ws]\r\nFORMULA\tA := A[P]\r\nFORMULA\tB := B[P]\r\nFORMULA\tC := C[P]\r\nFORMULA\tE := E[P]\r\nFORMULA\tG := G[P]\r\nFORMULA\tIØ := IØ[P]\r\nFORMULA\tH := H[P]\r\nFORMULA\tH1 := H1[P]\r\nFORMULA\tH2 := H2[P]\r\nFORMULA\tDNA := DNA[P]\r\nFORMULA\tDNM := DNM[P]\r\nPRICEALLOC\tP\t0\t{RESULTID[P];;;0} {FREQ[M];;Hz;1}\t\t\t\t\t\t\t\t\t\r\nZUSEIAVTOGUI\t1\r\n$\r\n\r\nOBJECT\tFLANGES\r\nIDENT\t2 \" 1/2 G - 2 \" G\r\nSHORTNAME\tDAB\r\nLIMITIND\t0\t0\r\nLIMIT\tFREQ\t0\t[M]\t0\t11\t0\t\t50\r\nSUCTIONSIDE\t2 \" 1/2 G\r\nDISCHARGESIDE\t2 \" G\r\nVALUES\tPN/DN\t8 bar (800 kPa)\r\nVALUESSUCT\tPN/DN\t8 bar (800 kPa)\r\n$\r\n\r\nOBJECT\tFLANGES\r\nIDENT\t2 \" 1/2 NPT - 2 \" NPT\r\nSHORTNAME\tDAB\r\nLIMITIND\t0\t0\r\nLIMIT\tFREQ\t0\t[M]\t0\t11\t0\t\t60\r\nSUCTIONSIDE\t2 \" 1/2 NPT\r\nDISCHARGESIDE\t2 \" NPT\r\nVALUES\tPN/DN\t8 bar (800 kPa)\r\nVALUESSUCT\tPN/DN\t8 bar (800 kPa)\r\n$\r\n\r\nOBJECT\tCHECK\r\n$\r\n\r\nOBJECT\tUSERINFO\r\nIDENT\tFoto\r\nSHORTNAME\tDAB\r\nFILENAME\tK 2041_foto\r\n$\r\n\r\nOBJECT\tUSERINFO\r\nIDENT\tCatalogo tecnico\r\nSHORTNAME\tDAB\r\nFILENAME\tK MONOGIRANTE_09.pdf\r\nLIMITIND\t0\t0\r\nLIMIT\tFREQ\t0\t[M]\t0\t11\t0\t\t50\r\n$\r\n\r\nOBJECT\tUSERINFO\r\nIDENT\tLibretto\r\nSHORTNAME\tDAB\r\nFILENAME\tCod_001355003.pdf\r\n$\r\n\r\nOBJECT\tUSERINFO\r\nIDENT\tAggiunta al manuale\r\nSHORTNAME\tDAB\r\nFILENAME\tCod_60151933.pdf\r\n$\r\n\r\nOBJECT\tUSERINFO\r\nIDENT\tDichiarazione di conformita\r\nSHORTNAME\tDAB\r\nFILENAME\tCod_60164947.pdf\r\n$\r\n\r\nOBJECT\tUSERINFO\r\nIDENT\tInformazioni efficienza\r\nSHORTNAME\tDAB\r\nFILENAME\tCod_60168585.pdf\r\n$\r\n$\r","-",11,"2016-09-16 16:23:52.276","-"]
["TPumpObj","DAB","K","-","-","K 12/200","ALL","\r\nOBJECT\tPUMP\r\nIDENT\tK 12/200\r\nNEWID\t{CHARSFDPN[Kl];;;0} {CHARSFDPN[M];;;0}\r\nSHORTNAME\tDAB\r\nDATA\tK monogirante completo\tK monogirante breve\t\r\nLIMITIND\t0\t0\r\nLIMIT\tMEDT\t1\t[AW]\t6\t11\t1\t\t-10\t50\r\nLIMIT\tTminfluido\t1\t[P]\t6\t32\t0\t\t-10\t-10\r\nLIMIT\tTmaxfluido\t1\t[P]\t6\t32\t0\t\t50\t50\r\nLIMIT\tTmaxambiente\t1\t[P]\t6\t32\t0\t\t40\t40\r\nPAGENO\t4\r\nSERIES\tK\r\nDATASHEET\tDAB - scheda tecnica pompe centrifughe K\tDAB - hydraulic\tDAB - dimension  -\t\t\r\nPERFORMANCECHART\t\tK 12/200\r\nTYPE\t3\tAll\t\r\nSAFETYMARGIN\t5\t1\t0\t1\r\nRESISTANCE\t0\r\nMATERIALKEY\tK -- A\t0\r\nGRIDCOLUMNS\tARTNR[P]\r\nGRIDCOLUMNS\tP_STG[Kl]\r\nGRIDCOLUMNS\tM_PHASE[M]\r\nGRIDCOLUMNS\tPOWER[M]\r\nGRIDCOLUMNS\tPOLES[M]\r\nGRIDCOLUMNS\tNAME[DNs]\r\nGRIDCOLUMNS\tNAME[DNd]\r\nMEASUREMENT\tA\t335\r\nMEASUREMENT\tB\t169\r\nMEASUREMENT\tC\t45\r\nMEASUREMENT\tD\t114\r\nMEASUREMENT\tDNA\t1\" 1/2\r\nMEASUREMENT\tDNM\t1\" 1/2\r\nMEASUREMENT\tE\t69\r\nMEASUREMENT\tF\t15\r\nMEASUREMENT\tG\t110\r\nMEASUREMENT\tH\t210\r\nMEASUREMENT\tH1\t85\r\nMEASUREMENT\tH2\t125\r\nMEASUREMENT\tI\t9\r\nOPTION\t1\r\nORIFICELIMIT\t0,1\t0,9\t0\r\n\r\nOBJECT\tINSTALLATION\r\nIDENT\tPompe centrifughe monogirante ad asse orizzontale\r\nSHORTNAME\tDAB\r\nFILENAME\tK monogirante_ingombro\r\nWEIGHT\t14\r\nLIMITIND\t0\t0\r\nLIMIT\tMEDT\t1\t[AW]\t6\t11\t1\t\t-10\t50\r\nWEIGHTFORMULA\t$Wg := if FREQ[M] = 50 then 14\r\nWEIGHTFORMULA\t$Wg := if ((FREQ[M] = 60) and (M_PHASE[M] = 1~)) then 14\r\nWEIGHTFORMULA\t$Wg := if ((FREQ[M] = 60) and (M_PHASE[M] = 3~)) then 13,8\r\nFIELDS\t\t0\t0\r\nHIDECOMP\t[AV]\r\nHIDECOMP\t[DN]\r\nHIDECOMP\t[DNd]\r\nHIDECOMP\t[DNs]\r\nHIDECOMP\t[M]\r\nHIDECOMP\t[Ws]\r\nFORMULA\tA := A[P]\r\nFORMULA\tB := B[P]\r\nFORMULA\tC := C[P]\r\nFORMULA\tD := D[P]\r\nFORMULA\tE := E[P]\r\nFORMULA\tF := F[P]\r\nFORMULA\tG := G[P]\r\nFORMULA\tI := I[P]\r\nFORMULA\tH := H[P]\r\nFORMULA\tH1 := H1[P]\r\nFORMULA\tH2 := H2[P]\r\nFORMULA\tDNA := DNA[P]\r\nFORMULA\tDNM := DNM[P]\r\nPRICEALLOC\tP\t0\t{RESULTID[P];;;0} {FREQ[M];;Hz;1}\t\t\t\t\t\t\t\t\t0\r\nZUSEIAVTOGUI\t1\r\n$\r\n\r\nOBJECT\tFLANGES\r\nIDENT\t1 \" G-M\r\nSHORTNAME\tDAB\r\nLIMITIND\t0\t0\r\nLIMIT\tFREQ\t0\t[M]\t0\t11\t0\t\t50\r\nSUCTIONSIDE\t1 \" G-M\r\nDISCHARGESIDE\t1 \" G-M\r\nVALUES\tPN/DN\t6 bar (600 kPa)\r\nVALUESSUCT\tPN/DN\t6 bar (600 kPa)\r\n$\r\n\r\nOBJECT\tFLANGES\r\nIDENT\t1 \" 1/2 NPT\r\nSHORTNAME\tDAB\r\nLIMITIND\t0\t0\r\nLIMIT\tFREQ\t0\t[M]\t0\t11\t0\t\t60\r\nSUCTIONSIDE\t1 \" 1/2 NPT\r\nDISCHARGESIDE\t1 \" 1/2 NPT\r\nVALUES\tPN/DN\t6 bar (600 kPa)\r\nVALUESSUCT\tPN/DN\t6 bar (600 kPa)\r\n$\r\n\r\nOBJECT\tCHECK\r\n$\r\n\r\nOBJECT\tUSERINFO\r\nIDENT\tFoto\r\nSHORTNAME\tDAB\r\nFILENAME\tK 2041_foto\r\n$\r\n\r\nOBJECT\tUSERINFO\r\nIDENT\tCatalogo tecnico\r\nSHORTNAME\tDAB\r\nFILENAME\tK MONOGIRANTE_09.pdf\r\nLIMITIND\t0\t0\r\nLIMIT\tFREQ\t0\t[M]\t0\t11\t0\t\t50\r\n$\r\n\r\nOBJECT\tUSERINFO\r\nIDENT\tLibretto\r\nSHORTNAME\tDAB\r\nFILENAME\tCod_001355001.pdf\r\n$\r\n\r\nOBJECT\tUSERINFO\r\nIDENT\tDichiarazione di conformita\r\nSHORTNAME\tDAB\r\nFILENAME\tCod_60164947.pdf\r\n$\r\n\r\nOBJECT\tUSERINFO\r\nIDENT\tInformazioni efficienza\r\nSHORTNAME\tDAB\r\nFILENAME\tCod_60168585.pdf\r\n$\r\n$\r","-",11,"2016-09-16 16:23:52.276","-"]
["TPumpObj","DAB","K","-","-","K 12/200 115V","ALL","\r\nOBJECT\tPUMP\r\nIDENT\tK 12/200 115V\r\nNEWID\t{CHARSFDPN[Kl];;;0} {CHARSFDPN[M];;;0} 115V\r\nSHORTNAME\tDAB\r\nDATA\tK monogirante completo\tK monogirante breve\t\r\nLIMITIND\t0\t0\r\nLIMIT\tMEDT\t1\t[AW]\t6\t11\t1\t\t-10\t50\r\nLIMIT\tTminfluido\t1\t[P]\t6\t32\t0\t\t-10\t-10\r\nLIMIT\tTmaxfluido\t1\t[P]\t6\t32\t0\t\t50\t50\r\nLIMIT\tTmaxambiente\t1\t[P]\t6\t32\t0\t\t40\t40\r\nPAGENO\t3\r\nSERIES\tK\r\nDATASHEET\tDAB - scheda tecnica pompe centrifughe K\tDAB - hydraulic\tDAB - dimension  -\t\t\r\nPERFORMANCECHART\t\tK 12/200 115V\r\nTYPE\t3\tAll\t\r\nSAFETYMARGIN\t5\t1\t0\t1\r\nRESISTANCE\t0\r\nMATERIALKEY\tK -- A\t0\r\nGRIDCOLUMNS\tARTNR[P]\r\nGRIDCOLUMNS\tP_STG[Kl]\r\nGRIDCOLUMNS\tM_PHASE[M]\r\nGRIDCOLUMNS\tPOWER[M]\r\nGRIDCOLUMNS\tPOLES[M]\r\nGRIDCOLUMNS\tNAME[DNs]\r\nGRIDCOLUMNS\tNAME[DNd]\r\nMEASUREMENT\tA\t335\r\nMEASUREMENT\tB\t169\r\nMEASUREMENT\tC\t45\r\nMEASUREMENT\tD\t114\r\nMEASUREMENT\tDNA\t1\" 1/2\r\nMEASUREMENT\tDNM\t1\" 1/2\r\nMEASUREMENT\tE\t69\r\nMEASUREMENT\tF\t15\r\nMEASUREMENT\tG\t110\r\nMEASUREMENT\tH\t210\r\nMEASUREMENT\tH1\t85\r\nMEASUREMENT\tH2\t125\r\nMEASUREMENT\tI\t9\r\nOPTION\t1\r\nORIFICELIMIT\t0,1\t0,9\t0\r\n\r\nOBJECT\tINSTALLATION\r\nIDENT\tPompe centrifughe monogirante ad asse orizzontale\r\nSHORTNAME\tDAB\r\nFILENAME\tK monogirante_ingombro\r\nWEIGHT\t14\r\nLIMITIND\t0\t0\r\nLIMIT\tMEDT\t1\t[AW]\t6\t11\t1\t\t-10\t50\r\nWEIGHTFORMULA\t$Wg := if FREQ[M] = 50 then 14\r\nWEIGHTFORMULA\t$Wg := if ((FREQ[M] = 60) and (M_PHASE[M] = 1~)) then 14\r\nWEIGHTFORMULA\t$Wg := if ((FREQ[M] = 60) and (M_PHASE[M] = 3~)) then 13,8\r\nFIELDS\t\t0\t0\r\nHIDECOMP\t[AV]\r\nHIDECOMP\t[DN]\r\nHIDECOMP\t[DNd]\r\nHIDECOMP\t[DNs]\r\nHIDECOMP\t[M]\r\nHIDECOMP\t[Ws]\r\nFORMULA\tA := A[P]\r\nFORMULA\tB := B[P]\r\nFORMULA\tC := C[P]\r\nFORMULA\tD := D[P]\r\nFORMULA\tE := E[P]\r\nFORMULA\tF := F[P]\r\nFORMULA\tG := G[P]\r\nFORMULA\tI := I[P]\r\nFORMULA\tH := H[P]\r\nFORMULA\tH1 := H1[P]\r\nFORMULA\tH2 := H2[P]\r\nFORMULA\tDNA := DNA[P]\r\nFORMULA\tDNM := DNM[P]\r\nPRICEALLOC\tP\t0\t{CHARSFDPN[Kl];;;0} {CHARSFDPN[M];;;0} {FREQ[M];;Hz;1} 115\t\t\t\t\t\t\t\t\t0\r\nZUSEIAVTOGUI\t1\r\n$\r\n\r\nOBJECT\tFLANGES\r\nIDENT\t1 \" G-M\r\nSHORTNAME\tDAB\r\nLIMITIND\t0\t0\r\nLIMIT\tFREQ\t0\t[M]\t0\t11\t0\t\t50\r\nSUCTIONSIDE\t1 \" G-M\r\nDISCHARGESIDE\t1 \" G-M\r\nVALUES\tPN/DN\t6 bar (600 kPa)\r\nVALUESSUCT\tPN/DN\t6 bar (600 kPa)\r\n$\r\n\r\nOBJECT\tFLANGES\r\nIDENT\t1 \" 1/2 NPT\r\nSHORTNAME\tDAB\r\nLIMITIND\t0\t0\r\nLIMIT\tFREQ\t0\t[M]\t0\t11\t0\t\t60\r\nSUCTIONSIDE\t1 \" 1/2 NPT\r\nDISCHARGESIDE\t1 \" 1/2 NPT\r\nVALUES\tPN/DN\t6 bar (600 kPa)\r\nVALUESSUCT\tPN/DN\t6 bar (600 kPa)\r\n$\r\n\r\nOBJECT\tCHECK\r\n$\r\n\r\nOBJECT\tUSERINFO\r\nIDENT\tFoto\r\nSHORTNAME\tDAB\r\nFILENAME\tK 2041_foto\r\n$\r\n\r\nOBJECT\tUSERINFO\r\nIDENT\tCatalogo tecnico\r\nSHORTNAME\tDAB\r\nFILENAME\tK MONOGIRANTE_09.pdf\r\nLIMITIND\t0\t0\r\nLIMIT\tFREQ\t0\t[M]\t0\t11\t0\t\t50\r\n$\r\n\r\nOBJECT\tUSERINFO\r\nIDENT\tLibretto\r\nSHORTNAME\tDAB\r\nFILENAME\tCod_001355001.pdf\r\n$\r\n\r\nOBJECT\tUSERINFO\r\nIDENT\tDichiarazione di conformita\r\nSHORTNAME\tDAB\r\nFILENAME\tCod_60164947.pdf\r\n$\r\n$\r","-",11,"2015-04-07 16:19:41.076","-"]
["TPumpObj","DAB","K","-","-","K 14/400","ALL","\r\nOBJECT\tPUMP\r\nIDENT\tK 14/400\r\nNEWID\t{CHARSFDPN[Kl];;;0} {CHARSFDPN[M];;;0}\r\nSHORTNAME\tDAB\r\nDATA\tK monogirante completo\tK monogirante breve\t\r\nLIMITIND\t0\t0\r\nLIMIT\tTminfluido\t1\t[P]\t6\t32\t0\t\t-15\t-15\r\nLIMIT\tTmaxfluido\t1\t[P]\t6\t32\t0\t\t110\t110\r\nLIMIT\tTmaxambiente\t1\t[P]\t6\t32\t0\t\t40\t40\r\nPAGENO\t4\r\nSERIES\tK\r\nDATASHEET\tDAB - scheda tecnica pompe centrifughe K\tDAB - hydraulic\tDAB - dimension  -\t\t\r\nPERFORMANCECHART\t\tK 14/400\r\nTYPE\t3\tAll\t\r\nSAFETYMARGIN\t5\t1\t0\t1\r\nRESISTANCE\t0\r\nMATERIALKEY\tK -- E\t0\r\nGRIDCOLUMNS\tARTNR[P]\r\nGRIDCOLUMNS\tP_STG[Kl]\r\nGRIDCOLUMNS\tM_PHASE[M]\r\nGRIDCOLUMNS\tPOWER[M]\r\nGRIDCOLUMNS\tPOLES[M]\r\nGRIDCOLUMNS\tNAME[DNs]\r\nGRIDCOLUMNS\tNAME[DNd]\r\nMEASUREMENT\tA\t430\r\nMEASUREMENT\tB\t200\r\nMEASUREMENT\tC\t62\r\nMEASUREMENT\tDNA\t2\"\r\nMEASUREMENT\tDNM\t2\"\r\nMEASUREMENT\tE\t74\r\nMEASUREMENT\tG\t120\r\nMEASUREMENT\tH\t270\r\nMEASUREMENT\tH1\t105\r\nMEASUREMENT\tH2\t165\r\nMEASUREMENT\tIØ\t11\r\nOPTION\t1\r\nORIFICELIMIT\t0,1\t0,9\t0\r\n\r\nOBJECT\tINSTALLATION\r\nIDENT\tPompe centrifughe monogirante ad asse orizzontale\r\nSHORTNAME\tDAB\r\nFILENAME\tK 14400_ingombro\r\nWEIGHT\t24,5\r\nLIMITIND\t0\t0\r\nLIMIT\tMEDT\t1\t[AW]\t6\t11\t1\t\t-15\t110\r\nWEIGHTFORMULA\t\r\nWEIGHTFORMULA\t$Wg := if (M_PHASE[M] = 1~) then 24,5\r\nWEIGHTFORMULA\t$Wg := if (M_PHASE[M] = 3~) then 22\r\nFIELDS\t\t0\t0\r\nHIDECOMP\t[AV]\r\nHIDECOMP\t[DN]\r\nHIDECOMP\t[DNd]\r\nHIDECOMP\t[DNs]\r\nHIDECOMP\t[M]\r\nHIDECOMP\t[Ws]\r\nFORMULA\t\r\nFORMULA\tA := if (M_PHASE[M] = 1~) then 430\r\nFORMULA\tA := if (M_PHASE[M] = 3~) then 358\r\nFORMULA\t\r\nFORMULA\tB := B[P]\r\nFORMULA\tC := C[P]\r\nFORMULA\tE := E[P]\r\nFORMULA\tG := G[P]\r\nFORMULA\tIØ := IØ[P]\r\nFORMULA\tH := H[P]\r\nFORMULA\tH1 := H1[P]\r\nFORMULA\tH2 := H2[P]\r\nFORMULA\tDNA := DNA[P]\r\nFORMULA\tDNM := DNM[P]\r\nPRICEALLOC\tP\t0\t{RESULTID[P];;;0} {FREQ[M];;Hz;1}\t\t\t\t\t\t\t\t\t\r\nZUSEIAVTOGUI\t1\r\n$\r\n\r\nOBJECT\tFLANGES\r\nIDENT\t2 \" G\r\nSHORTNAME\tDAB\r\nLIMITIND\t0\t0\r\nLIMIT\tFREQ\t0\t[M]\t0\t11\t0\t\t50\r\nSUCTIONSIDE\t2 \" G\r\nDISCHARGESIDE\t2 \" G\r\nVALUES\tPN/DN\t6 bar (600 kPa)\r\nVALUESSUCT\tPN/DN\t6 bar (600 kPa)\r\n$\r\n\r\nOBJECT\tFLANGES\r\nIDENT\t2 \" NPT\r\nSHORTNAME\tDAB\r\nLIMITIND\t0\t0\r\nLIMIT\tFREQ\t0\t[M]\t0\t11\t0\t\t60\r\nSUCTIONSIDE\t2 \" NPT\r\nDISCHARGESIDE\t2 \" NPT\r\nVALUES\tPN/DN\t6 bar (600 kPa)\r\nVALUESSUCT\tPN/DN\t6 bar (600 kPa)\r\n$\r\n\r\nOBJECT\tCHECK\r\n$\r\n\r\nOBJECT\tUSERINFO\r\nIDENT\tFoto\r\nSHORTNAME\tDAB\r\nFILENAME\tK 2041_foto\r\n$\r\n\r\nOBJECT\tUSERINFO\r\nIDENT\tCatalogo tecnico\r\nSHORTNAME\tDAB\r\nFILENAME\tK MONOGIRANTE_09.pdf\r\nLIMITIND\t0\t0\r\nLIMIT\tFREQ\t0\t[M]\t0\t11\t0\t\t50\r\n$\r\n\r\nOBJECT\tUSERINFO\r\nIDENT\tLibretto\r\nSHORTNAME\tDAB\r\nFILENAME\tCod_001355001.pdf\r\n$\r\n\r\nOBJECT\tUSERINFO\r\nIDENT\tDichiarazione di conformita\r\nSHORTNAME\tDAB\r\nFILENAME\tCod_60164947.pdf\r\n$\r\n\r\nOBJECT\tUSERINFO\r\nIDENT\tInformazioni efficienza\r\nSHORTNAME\tDAB\r\nFILENAME\tCod_60168585.pdf\r\n$\r\n$\r","-",11,"2016-09-16 16:23:52.276","-"]
["TPumpObj","DAB","K my11","-","-","K 80/400","ALL","\r\nOBJECT\tPUMP\r\nIDENT\tK 80/400\r\nNEWID\t{CHARSFDPN[Kl];;;0} {CHARSFDPN[M];;;0} {NEWID1[M];;;0}\r\nSHORTNAME\tDAB\r\nDATA\tK bigirante completo\tK bigirante breve\t\r\nLIMITIND\t0\t0\r\nLIMIT\tTminfluido\t1\t[P]\t6\t32\t0\t\t-15\t-15\r\nLIMIT\tTmaxfluido\t1\t[P]\t6\t32\t0\t\t110\t110\r\nLIMIT\tTmaxambiente\t1\t[P]\t6\t32\t0\t\t40\t40\r\nPAGENO\t5\r\nSERIES\tK my11\r\nDATASHEET\tDAB - scheda tecnica pompe centrifughe K MEI\tDAB - hydraulic\tDAB - dimension  -\t\t\r\nPERFORMANCECHART\tK 80/400 MY15\t\r\nTYPE\t3\tAll\t\r\nSAFETYMARGIN\t5\t1\t0\t1\r\nRESISTANCE\t0\r\nMATERIALKEY\tKb -- E\t0\r\nGRIDCOLUMNS\tARTNR[P]\r\nGRIDCOLUMNS\tP_STG[Kl]\r\nGRIDCOLUMNS\tM_PHASE[M]\r\nGRIDCOLUMNS\tPOWER[M]\r\nGRIDCOLUMNS\tPOLES[M]\r\nGRIDCOLUMNS\tNAME[DNs]\r\nGRIDCOLUMNS\tNAME[DNd]\r\nMEASUREMENT\tA\t655\r\nMEASUREMENT\tB\t270\r\nMEASUREMENT\tC\t122\r\nMEASUREMENT\tD\t182\r\nMEASUREMENT\tDNA\t2\" G\r\nMEASUREMENT\tDNM\t1\" 1/4 G\r\nMEASUREMENT\tE\t60\r\nMEASUREMENT\tF\t20\r\nMEASUREMENT\tG\t210\r\nMEASUREMENT\tH\t340\r\nMEASUREMENT\tH1\t160\r\nMEASUREMENT\tH2\t180\r\nMEASUREMENT\tIØ\t14\r\nOPTION\t1\r\nORIFICELIMIT\t0,1\t0,9\t0\r\n\r\nOBJECT\tINSTALLATION\r\nIDENT\tPompe centrifughe bigirante ad asse orizzontale\r\nNEWID\tMY11\r\nSHORTNAME\tDAB\r\nFILENAME\tK 70300_ingombro\r\nWEIGHT\t78\r\nLIMITIND\t0\t0\r\nLIMIT\tMEDT\t1\t[AW]\t6\t11\t1\t\t-15\t110\r\nWEIGHTFORMULA\t$Wg :=$Wg[P] + $Wg[AV]\r\nFIELDS\t\t0\t0\r\nHIDECOMP\t[AV]\r\nHIDECOMP\t[DN]\r\nHIDECOMP\t[DNd]\r\nHIDECOMP\t[DNs]\r\nHIDECOMP\t[M]\r\nHIDECOMP\t[Ws]\r\nFORMULA\tA := A[P]\r\nFORMULA\tB := B[P]\r\nFORMULA\tC := C[P]\r\nFORMULA\tD := D[P]\r\nFORMULA\tDNA := DNA[P]\r\nFORMULA\tDNM := DNM[P]\r\nFORMULA\tE := E[P]\r\nFORMULA\tF := F[P]\r\nFORMULA\tG := G[P]\r\nFORMULA\tH := H[P]\r\nFORMULA\tH1 := H1[P]\r\nFORMULA\tH2 := H2[P]\r\nFORMULA\tIØ := IØ[P]\r\nPRICEALLOC\tP\t0\t{CHARSFDPN[Kl];;;0} {CHARSFDPN[M];;;0} {CHARSFDPN[AV];;;0} {FREQ[M];;Hz;1} {NEWID1[M];;;0}\t\t\t\t\t\t\t\t\t0\r\nZUSEIAVTOGUI\t1\r\n$\r\n\r\nOBJECT\tFLANGES\r\nIDENT\t2 \" G - 1 \" 1/4 G\r\nSHORTNAME\tDAB\r\nLIMITIND\t0\t0\r\nLIMIT\tFREQ\t0\t[M]\t0\t11\t0\t\t50\r\nSUCTIONSIDE\t2 \" G\r\nDISCHARGESIDE\t1 \" 1/4 G\r\nVALUES\tPN/DN\t12 bar (1200 kPa)\r\nVALUESSUCT\tPN/DN\t12 bar (1200 kPa)\r\n$\r\n\r\nOBJECT\tFLANGES\r\nIDENT\t2 \" NPT - 1 \" 1/4 NPT\r\nSHORTNAME\tDAB\r\nLIMITIND\t0\t0\r\nLIMIT\tFREQ\t0\t[M]\t0\t11\t0\t\t60\r\nSUCTIONSIDE\t2 \" NPT\r\nDISCHARGESIDE\t1 \" 1/4 NPT\r\nVALUES\tPN/DN\t12 bar (1200 kPa)\r\nVALUESSUCT\tPN/DN\t12 bar (1200 kPa)\r\n$\r\n\r\nOBJECT\tCHECK\r\n$\r\n\r\nOBJECT\tUSERINFO\r\nIDENT\tFoto\r\nSHORTNAME\tDAB\r\nFILENAME\tK_70-300_foto\r\n$\r\n\r\nOBJECT\tUSERINFO\r\nIDENT\tLibretto\r\nSHORTNAME\tDAB\r\nFILENAME\tCod_001355003.pdf\r\n$\r\n\r\nOBJECT\tUSERINFO\r\nIDENT\tAggiunta al manuale\r\nSHORTNAME\tDAB\r\nFILENAME\tCod_60151933.pdf\r\n$\r\n\r\nOBJECT\tUSERINFO\r\nIDENT\tDichiarazione di conformita\r\nSHORTNAME\tDAB\r\nFILENAME\tCod_60164947.pdf\r\n$\r\n\r\nOBJECT\tUSERINFO\r\nIDENT\tCAD\r\nSHORTNAME\tDAB\r\nFILENAME\tK_80-400.rar\r\n$\r\n\r\nOBJECT\tUSERINFO\r\nIDENT\tCatalogo tecnico\r\nSHORTNAME\tDAB\r\nFILENAME\tCAT14_K_BIGIRANTE.pdf\r\n$\r\n$\r","-",11,"2016-09-16 16:01:32.437","-"]
["TPumpObj","DAB","KDN BS my07","-","-","KDN 80-250","ALL","\r\nOBJECT\tPUMP\r\nIDENT\tKDN 80-250\r\nNEWID\tKDN 80-250/XXX/{MATCD[P];;;0}/{MATCODE[WD];;;0}\r\nSHORTNAME\tDAB\r\nDATA\tKDN completo\tKDN breve\tKDN suggerimento\r\nLIMITIND\t0\t0\r\nLIMIT\tTminfluido\t1\t[P]\t6\t32\t0\t\t-10\t-10\r\nLIMIT\tTmaxfluido\t1\t[P]\t6\t32\t0\t\t140\t140\r\nLIMIT\tTmaxambiente\t1\t[P]\t6\t32\t0\t\t40\t40\r\nPAGENO\t5\r\nSERIES\tKDN BS my07\r\nDATASHEET\tDAB - scheda tecnica pompe centrif. norm. Tenute Speciali new MEI\tDAB - hydraulic\tDAB - dimension  -\t\t\r\nPERFORMANCECHART\tKDN 80-250 MY07\tKDN 80-250 MY07\r\nTYPE\t1\tAll\t\r\nTYPE\t3\tAll\t\r\nINCREMENT\t1\tmm\t1\r\nSAFETYMARGIN\t-1\t1\t0\t1\r\nRESISTANCE\t0\r\nMATERIALKEY\tKDN STANDARD_tenute speciali\t0\r\nGRIDCOLUMNS\tARTNR[P]\r\nGRIDCOLUMNS\tNAME[DNs]\r\nGRIDCOLUMNS\tNAME[DNd]\r\nMEASUREMENT\tA\t125\r\nMEASUREMENT\tB\t80\r\nMEASUREMENT\tD\t32\r\nMEASUREMENT\tDNA\t100\r\nMEASUREMENT\tDNM\t80\r\nMEASUREMENT\tF\t470\r\nMEASUREMENT\tH1\t200\r\nMEASUREMENT\tH2\t280\r\nMEASUREMENT\tL\t80\r\nMEASUREMENT\tM1\t160\r\nMEASUREMENT\tM2\t120\r\nMEASUREMENT\tN1\t400\r\nMEASUREMENT\tN2\t315\r\nMEASUREMENT\tS1\tM16\r\nMEASUREMENT\tS2\tM12\r\nMEASUREMENT\tW\t340\r\nMEASUREMENT\tX\t140\r\nOPTION\t1\r\nORIFICELIMIT\t0,1\t0,9\t0\r\n\r\nOBJECT\tINSTALLATION\r\nIDENT\tPompa ad asse nudo\r\nSHORTNAME\tDAB\r\nFILENAME\tKDN_ingombro\r\nWEIGHT\t107\r\nLIMITIND\t0\t0\r\nLIMIT\tMEDT\t1\t[AW]\t6\t11\t1\t\t-10\t140\r\nWEIGHTFORMULA\t$Wg :=$Wg[P] + $Wg[AV]\r\nACCSALLOC\tKDN\r\nFIELDS\t\t0\t0\r\nHIDECOMP\t[AV]\r\nHIDECOMP\t[DN]\r\nHIDECOMP\t[DNd]\r\nHIDECOMP\t[DNs]\r\nHIDECOMP\t[WD]\r\nHIDECOMP\t[Ws]\r\nSEAL\tDAB\tTenuta meccanica\tBAQE\t\t\t\r\nSEAL\tDAB\tTenuta meccanica\tBQQE\t\t\t\r\nSEAL\tDAB\tTenuta meccanica\tBQQV\t\t\t\r\nSEAL\tDAB\tTenuta meccanica\tBAQV\t\t\t\r\nFORMULA\tA := A[P]\r\nFORMULA\tB := B[P]\r\nFORMULA\tD := D[P]\r\nFORMULA\tDNA := DNA[P]\r\nFORMULA\tDNM := DNM[P]\r\nFORMULA\tF := F[P]\r\nFORMULA\tH1 := H1[P]\r\nFORMULA\tH2 := H2[P]\r\nFORMULA\tL := L[P]\r\nFORMULA\tM1 := M1[P]\r\nFORMULA\tM2 := M2[P]\r\nFORMULA\tN1 := N1[P]\r\nFORMULA\tN2 := N2[P]\r\nFORMULA\tS1 := S1[P]\r\nFORMULA\tS2 := S2[P]\r\nFORMULA\tW := W[P]\r\nFORMULA\tX := X[P]\r\nPRICEALLOC\tP\t0\t{RESULTID[P];;;0} {FREQ[M];;Hz;1}\t\t\t\t\t\t\t\t\t\r\nDONTSELECT\t[M]\r\nZUSEIAVTOGUI\t1\r\n$\r\n\r\nOBJECT\tFLANGES\r\nIDENT\tDN 100 / DN 80\r\nSHORTNAME\tDAB\r\nSUCTIONSIDE\tDN 100\r\nDISCHARGESIDE\tDN 80\r\nVALUES\tDIN 2533\tPN 16\r\nVALUESSUCT\tDIN 2533\tPN 16\r\n$\r\n\r\nOBJECT\tCHECK\r\n$\r\n\r\nOBJECT\tUSERINFO\r\nIDENT\tFoto\r\nSHORTNAME\tDAB\r\nFILENAME\tkdn_04_2\r\n$\r\n\r\nOBJECT\tUSERINFO\r\nIDENT\tComponenti speciali a richiesta\r\nSHORTNAME\tDAB\r\nDATA\tKDN comp. speciali\t\t\r\n$\r\n\r\nOBJECT\tUSERINFO\r\nIDENT\tCatalogo tecnico\r\nSHORTNAME\tDAB\r\nFILENAME\tCAT14_KDN.pdf\r\nLIMITIND\t0\t0\r\nLIMIT\tFREQ\t0\t[M]\t0\t11\t0\t\t50\r\n$\r\n\r\nOBJECT\tUSERINFO\r\nIDENT\tDichiarazione di conformita\r\nSHORTNAME\tDAB\r\nFILENAME\tCod_60164947.pdf\r\n$\r\n\r\nOBJECT\tUSERINFO\r\nIDENT\tManuale\r\nSHORTNAME\tDAB\r\nFILENAME\tCod_001354000.pdf\r\n$\r\n\r\nOBJECT\tUSERINFO\r\nIDENT\tCAD\r\nSHORTNAME\tDAB\r\nFILENAME\tKDN BS 80.rar\r\n$\r\n$\r","-",11,"2015-04-09 09:21:54.466","-"]
["TPumpObj","DAB","KDN oversize BP my11","-","-","KDN 80-330","ALL","\r\nOBJECT\tPUMP\r\nIDENT\tKDN 80-330\r\nNEWID\tKDN 80-330/XXX/{MATCD[P];;;0}W/{MATCODE[WD];;;0}/{CHARSFDPN[K];;;0}/{Power[M];;kW;0;;;;;;,}/{POLES[M];;;0} {NEWID1[M];;;0}\r\nSHORTNAME\tDAB\r\nDATA\tKDN oversize NEW - completo\tKDN oversize NEW - breve\tKDN Oversize suggerimento NEW\r\nLIMITIND\t0\t0\r\nLIMIT\tMEDT\t1\t[AW]\t6\t11\t1\t\t-10\t140\r\nLIMIT\tTminfluido\t1\t[P]\t6\t32\t0\t\t-10\t-10\r\nLIMIT\tTmaxfluido\t1\t[P]\t6\t32\t0\t\t120\t120\r\nPAGENO\t3\r\nSERIES\tKDN oversize BP my11\r\nDATASHEET\tDAB - scheda tecnica pompe centrifughe norm. KDN oversize new\tDAB - hydraulic\tDAB - dimension  -\t\t\r\nPERFORMANCECHART\tFIP KDN 80-330\t\r\nTYPE\t1\tAll\t\r\nTYPE\t3\tAll\t\r\nINCREMENT\t1\tmm\t1\r\nSAFETYMARGIN\t-1\t1\t0\t1\r\nPHASE\t3\r\nRESISTANCE\t0\r\nMATERIALKEY\tGirante Ghisa GG 25 4 poli\t0\r\nMATERIALKEY\tGirante oversize 2p 80-330 BW\t0\r\nMATERIALKEY\tGirante oversize 2p 80-330 DW\t0\r\nGRIDCOLUMNS\tARTNR[P]\r\nGRIDCOLUMNS\tPOLES[M]\r\nGRIDCOLUMNS\tPOWER[M]\r\nGRIDCOLUMNS\tSPEED[M]\r\nGRIDCOLUMNS\tNAME[DNs]\r\nGRIDCOLUMNS\tNAME[DNd]\r\nMEASUREMENT\tA\t125\r\nMEASUREMENT\tA2\t90\r\nMEASUREMENT\tB2\t610\r\nMEASUREMENT\tB3\t550\r\nMEASUREMENT\tD\t4x28\r\nMEASUREMENT\tDNA\t125\r\nMEASUREMENT\tDNM\t80\r\nMEASUREMENT\tH\t100\r\nMEASUREMENT\tH1\t250\r\nMEASUREMENT\tH2\t315\r\nMEASUREMENT\tH3\t350\r\nMEASUREMENT\tL1\t1400\r\nMEASUREMENT\tL3\t940\r\nOPTION\t1\r\nORIFICELIMIT\t0.1\t0.9\t0\r\n\r\nOBJECT\tINSTALLATION\r\nIDENT\tPompa su basamento\r\nNEWID\tMY11\r\nSHORTNAME\tDAB\r\nFILENAME\tKDN oversize dimensioni.JPG\r\nWEIGHTFORMULA\t$Wg := if ((CHARSFDPN[K]=1) AND (NEWID1[M] = IE2) AND (POWER[M] = 5,5)) then 289\r\nWEIGHTFORMULA\t$Wg := if ((CHARSFDPN[K]=1) AND (NEWID1[M] = IE3) AND (POWER[M] = 7,5)) then 279\r\nWEIGHTFORMULA\t$Wg := if ((CHARSFDPN[K]=1) AND (NEWID1[M] = IE3) AND (POWER[M] = 11)) then 316\r\nWEIGHTFORMULA\t$Wg := if ((CHARSFDPN[K]=1) AND (NEWID1[M] = IE3) AND (POWER[M] = 15)) then 352\r\nWEIGHTFORMULA\t$Wg := if ((CHARSFDPN[K]=1) AND (NEWID1[M] = IE3) AND (POWER[M] = 18,5)) then 387\r\nWEIGHTFORMULA\t\r\nWEIGHTFORMULA\t$Wg := if ((CHARSFDPN[K]=2) AND (NEWID1[M] = IE2) AND (POWER[M] = 5,5)) then 289\r\nWEIGHTFORMULA\t$Wg := if ((CHARSFDPN[K]=2) AND (NEWID1[M] = IE3) AND (POWER[M] = 7,5)) then 294\r\nWEIGHTFORMULA\t$Wg := if ((CHARSFDPN[K]=2) AND (NEWID1[M] = IE3) AND (POWER[M] = 11)) then 331\r\nWEIGHTFORMULA\t$Wg := if ((CHARSFDPN[K]=2) AND (NEWID1[M] = IE3) AND (POWER[M] = 15)) then 367\r\nWEIGHTFORMULA\t$Wg := if ((CHARSFDPN[K]=2) AND (NEWID1[M] = IE3) AND (POWER[M] = 18,5)) then 402\r\nWEIGHTFORMULA\t$Wg := if ((NEWID1[M] = IE2) and (POWER[M] > 5,5)) then --\r\nWEIGHTFORMULA\t$Wg := if ((CHARSFDPN[K]=1) AND (NEWID1[M] = IE3) AND (POWER[M] = 30)) then 480\r\nWEIGHTFORMULA\t$Wg := if ((CHARSFDPN[K]=1) AND (NEWID1[M] = IE3) AND (POWER[M] = 37)) then 510\r\nWEIGHTFORMULA\t$Wg := if ((CHARSFDPN[K]=1) AND (NEWID1[M] = IE3) AND (POWER[M] = 45)) then 597\r\nWEIGHTFORMULA\t$Wg := if ((CHARSFDPN[K]=1) AND (NEWID1[M] = IE3) AND (POWER[M] = 55)) then 702\r\nWEIGHTFORMULA\t$Wg := if ((CHARSFDPN[K]=1) AND (NEWID1[M] = IE3) AND (POWER[M] = 75)) then 895\r\nWEIGHTFORMULA\t$Wg := if ((CHARSFDPN[K]=1) AND (NEWID1[M] = IE3) AND (POWER[M] = 90)) then 999\r\nWEIGHTFORMULA\t$Wg := if ((CHARSFDPN[K]=1) AND (NEWID1[M] = IE3) AND (POWER[M] = 110)) then 1422\r\nWEIGHTFORMULA\t$Wg := if ((CHARSFDPN[K]=1) AND (NEWID1[M] = IE3) AND (POWER[M] = 132)) then 1405\r\nWEIGHTFORMULA\t$Wg := if ((CHARSFDPN[K]=1) AND (NEWID1[M] = IE3) AND (POWER[M] = 160)) then 1545\r\nWEIGHTFORMULA\t$Wg := if ((CHARSFDPN[K]=2) AND (NEWID1[M] = IE3) AND (POWER[M] = 30)) then 495\r\nWEIGHTFORMULA\t$Wg := if ((CHARSFDPN[K]=2) AND (NEWID1[M] = IE3) AND (POWER[M] = 37)) then 525\r\nWEIGHTFORMULA\t$Wg := if ((CHARSFDPN[K]=2) AND (NEWID1[M] = IE3) AND (POWER[M] = 45)) then 612\r\nWEIGHTFORMULA\t$Wg := if ((CHARSFDPN[K]=2) AND (NEWID1[M] = IE3) AND (POWER[M] = 55)) then 717\r\nWEIGHTFORMULA\t$Wg := if ((CHARSFDPN[K]=2) AND (NEWID1[M] = IE3) AND (POWER[M] = 75)) then 910\r\nWEIGHTFORMULA\t$Wg := if ((CHARSFDPN[K]=2) AND (NEWID1[M] = IE3) AND (POWER[M] = 90)) then 1014\r\nWEIGHTFORMULA\t$Wg := if ((CHARSFDPN[K]=2) AND (NEWID1[M] = IE3) AND (POWER[M] = 110)) then 1437\r\nWEIGHTFORMULA\t$Wg := if ((CHARSFDPN[K]=2) AND (NEWID1[M] = IE3) AND (POWER[M] = 132)) then 1420\r\nWEIGHTFORMULA\t$Wg := if ((CHARSFDPN[K]=2) AND (NEWID1[M] = IE3) AND (POWER[M] = 160)) then 1560\r\nACCSALLOC\tKDN\r\nFIELDS\t\t3\t0\r\nHIDECOMP\t[AV]\r\nHIDECOMP\t[DN]\r\nHIDECOMP\t[DNd]\r\nHIDECOMP\t[DNs]\r\nHIDECOMP\t[K]\r\nHIDECOMP\t[M]\r\nHIDECOMP\t[WD]\r\nHIDECOMP\t[Ws]\r\nCOUPLING\tDAB\tDAB\tStandard\t\t\t\r\nCOUPLING\tDAB\tDAB\tSpaziatore - Spacer\t\t\t\r\nSEAL\tDAB\tTenuta meccanica\tBAQE\t\t\t\r\nSEAL\tDAB\tTenuta meccanica\tBAQV\t\t\t\r\nSEAL\tDAB\tTenuta meccanica\tBQQE\t\t\t\r\nSEAL\tDAB\tTenuta meccanica\tBQQV\t\t\t\r\nFORMULA\tDNA := DNA[P]\r\nFORMULA\tDNM := DNM[P]\r\nFORMULA\t\r\nFORMULA\tA := A[P]\r\nFORMULA\tA2 := if POWER[M] < 132 then 90\r\nFORMULA\tA2 := if POWER[M] > 110 then 95\r\nFORMULA\tB2 := if POWER[M] < 15 then 540\r\nFORMULA\tB2 := if ((POWER[M] > 11) AND (POWER[M] < 45)) then 610\r\nFORMULA\tB2 := if ((POWER[M] > 40) AND (POWER[M] < 75)) then 660\r\nFORMULA\tB2 := if ((POWER[M] > 70) AND (POWER[M] < 110)) then 730\r\nFORMULA\tB2 := if POWER[M] = 110 then 910\r\nFORMULA\tB2 := if POWER[M] > 110 then 680\r\nFORMULA\tB3 := if POWER[M] < 15 then 540\r\nFORMULA\tB3 := if ((POWER[M] > 11) AND (POWER[M] < 45)) then 550\r\nFORMULA\tB3 := if ((POWER[M] > 40) AND (POWER[M] < 75)) then 600\r\nFORMULA\tB3 := if ((POWER[M] > 70) AND (POWER[M] < 110)) then 670\r\nFORMULA\tB3 := if POWER[M] = 110 then 830\r\nFORMULA\tB3 := if POWER[M] > 110 then 635\r\nFORMULA\tD :=  if POWER[M] < 132 then 4x28\r\nFORMULA\tD :=  if POWER[M] > 130 then 4x20\r\nFORMULA\tH := if POWER[M] < 15 then 80\r\nFORMULA\tH := if ((POWER[M] > 11) AND (POWER[M] < 110)) then 100\r\nFORMULA\tH := if POWER[M] > 110 then 190\r\nFORMULA\tH := if POWER[M] = 110 then 120\r\nFORMULA\tH1 := if POWER[M] < 75 then 250\r\nFORMULA\tH1 := if ((POWER[M] > 55) AND (POWER[M] < 110)) then 280\r\nFORMULA\tH1 := if POWER[M] > 90 then 315\r\nFORMULA\tH2 := H2[P]\r\nFORMULA\tH3 := if POWER[M] < 15 then 330\r\nFORMULA\tH3 := if ((POWER[M] > 11) AND (POWER[M] < 75)) then 350\r\nFORMULA\tH3 := if ((POWER[M] > 55) AND (POWER[M] < 110)) then 380\r\nFORMULA\tH3 := if POWER[M] > 100 then 505\r\nFORMULA\tH3 := if POWER[M] = 110 then 435\r\nFORMULA\tL1 := if POWER[M] < 15 then 1250\r\nFORMULA\tL1 := if ((POWER[M] > 11) AND (POWER[M] < 45)) then 1400\r\nFORMULA\tL1 := if ((POWER[M] > 40) AND (POWER[M] < 75)) then 1600\r\nFORMULA\tL1 := if ((POWER[M] > 70) AND (POWER[M] < 110)) then 1800\r\nFORMULA\tL1 := if POWER[M] = 110 then 2000\r\nFORMULA\tL1 := if POWER[M] > 110 then 1550\r\nFORMULA\tL3 := if POWER[M] < 15 then 840\r\nFORMULA\tL3 := if ((POWER[M] > 11) AND (POWER[M] < 45)) then 940\r\nFORMULA\tL3 := if ((POWER[M] > 40) AND (POWER[M] < 75)) then 1060\r\nFORMULA\tL3 := if ((POWER[M] > 70) AND (POWER[M] < 110)) then 1200\r\nFORMULA\tL3 := if POWER[M] = 110 then 1340\r\nFORMULA\tL3 := if POWER[M] > 110 then 1250\r\nFORMULA\tL := if ((CHARSFDPN[K]=1) AND (NEWID1[M] = IE2) AND (POWER[M] = 5,5)) then 1129\r\nFORMULA\tL := if ((CHARSFDPN[K]=1) AND (NEWID1[M] = IE3) AND (POWER[M] = 7,5)) then 1179\r\nFORMULA\tL := if ((CHARSFDPN[K]=1) AND (NEWID1[M] = IE3) AND (POWER[M] = 11)) then 1324\r\nFORMULA\tL := if ((CHARSFDPN[K]=1) AND (NEWID1[M] = IE3) AND (POWER[M] = 15)) then 1379\r\nFORMULA\tL := if ((CHARSFDPN[K]=1) AND (NEWID1[M] = IE3) AND (POWER[M] = 18,5)) then 1399\r\nFORMULA\tL := if ((CHARSFDPN[K]=2) AND (NEWID1[M] = IE2) AND (POWER[M] = 5,5)) then 1270\r\nFORMULA\tL := if ((CHARSFDPN[K]=2) AND (NEWID1[M] = IE3) AND (POWER[M] = 7,5)) then 1320\r\nFORMULA\tL := if ((CHARSFDPN[K]=2) AND (NEWID1[M] = IE3) AND (POWER[M] = 11)) then 1465\r\nFORMULA\tL := if ((CHARSFDPN[K]=2) AND (NEWID1[M] = IE3) AND (POWER[M] = 15)) then 1520\r\nFORMULA\tL := if ((CHARSFDPN[K]=2) AND (NEWID1[M] = IE3) AND (POWER[M] = 18,5)) then 1540\r\nFORMULA\tL := if ((NEWID1[M] = IE2) and (POWER[M] > 5,5)) then --\r\nFORMULA\tL := if ((CHARSFDPN[K]=1) AND (NEWID1[M] = IE3) AND (POWER[M] = 30)) then 1479\r\nFORMULA\tL := if ((CHARSFDPN[K]=1) AND (NEWID1[M] = IE3) AND (POWER[M] = 37)) then 1500\r\nFORMULA\tL := if ((CHARSFDPN[K]=1) AND (NEWID1[M] = IE3) AND (POWER[M] = 45)) then 1575\r\nFORMULA\tL := if ((CHARSFDPN[K]=1) AND (NEWID1[M] = IE3) AND (POWER[M] = 55)) then 1505\r\nFORMULA\tL := if ((CHARSFDPN[K]=1) AND (NEWID1[M] = IE3) AND (POWER[M] = 75)) then 1700\r\nFORMULA\tL := if ((CHARSFDPN[K]=1) AND (NEWID1[M] = IE3) AND (POWER[M] = 90)) then 1750\r\nFORMULA\tL := if ((CHARSFDPN[K]=1) AND (NEWID1[M] = IE3) AND (POWER[M] = 110)) then 1987\r\nFORMULA\tL := if ((CHARSFDPN[K]=1) AND (NEWID1[M] = IE3) AND (POWER[M] = 132)) then 2127\r\nFORMULA\tL := if ((CHARSFDPN[K]=1) AND (NEWID1[M] = IE3) AND (POWER[M] = 160)) then 2127\r\nFORMULA\tL := if ((CHARSFDPN[K]=2) AND (NEWID1[M] = IE3) AND (POWER[M] = 30)) then 1620\r\nFORMULA\tL := if ((CHARSFDPN[K]=2) AND (NEWID1[M] = IE3) AND (POWER[M] = 37)) then 1641\r\nFORMULA\tL := if ((CHARSFDPN[K]=2) AND (NEWID1[M] = IE3) AND (POWER[M] = 45)) then 1716\r\nFORMULA\tL := if ((CHARSFDPN[K]=2) AND (NEWID1[M] = IE3) AND (POWER[M] = 55)) then 1646\r\nFORMULA\tL := if ((CHARSFDPN[K]=2) AND (NEWID1[M] = IE3) AND (POWER[M] = 75)) then 1841\r\nFORMULA\tL := if ((CHARSFDPN[K]=2) AND (NEWID1[M] = IE3) AND (POWER[M] = 90)) then 1891\r\nFORMULA\tL := if ((CHARSFDPN[K]=2) AND (NEWID1[M] = IE3) AND (POWER[M] = 110)) then 2128\r\nFORMULA\tL := if ((CHARSFDPN[K]=2) AND (NEWID1[M] = IE3) AND (POWER[M] = 132)) then 2268\r\nFORMULA\tL := if ((CHARSFDPN[K]=2) AND (NEWID1[M] = IE3) AND (POWER[M] = 160)) then 2268\r\nPRICEALLOC\tP\t0\tKDN 80-330/XXX/{MATCD[P];;;0}W/{MATCODE[WD];;;0}/{CHARSFDPN[K];;;0}/{Power[M];;kW;0;;;;;;,}/{POLES[M];;;0} {CHARSFDPN[AV];;;0} {NEWID1[M];;;0}\t\t\t\t\t\t\t\t\t0\r\nZUSEIAVTOGUI\t1\r\n$\r\n\r\nOBJECT\tFLANGES\r\nIDENT\tDN 125 / DN 80\r\nSHORTNAME\tDAB\r\nSUCTIONSIDE\tDN 125\r\nDISCHARGESIDE\tDN 80\r\nVALUES\tDIN 2501\tPN 16\r\nVALUESSUCT\tDIN 2501\tPN 16\r\n$\r\n\r\nOBJECT\tCHECK\r\n$\r\n\r\nOBJECT\tUSERINFO\r\nIDENT\tCatalogo tecnico\r\nSHORTNAME\tDAB\r\nFILENAME\tCAT14_KDN_OVERSIZE.pdf\r\n$\r\n\r\nOBJECT\tUSERINFO\r\nIDENT\tLibretto\r\nSHORTNAME\tDAB\r\nFILENAME\tCod_001354000.pdf\r\n$\r\n\r\nOBJECT\tUSERINFO\r\nIDENT\tFoto\r\nSHORTNAME\tDAB\r\nFILENAME\tKDN_Oversize_BP\r\n$\r\n\r\nOBJECT\tUSERINFO\r\nIDENT\tDichiarazione di conformita\r\nSHORTNAME\tDAB\r\nFILENAME\tCod_60164947.pdf\r\n$\r\n$\r","-",11,"2015-12-04 10:49:13.351","-"]
["TPumpObj","DAB","KV 3 - KV 6 - KV 10","-","-","KV 10","ALL","\r\nOBJECT\tPUMP\r\nIDENT\tKV 10\r\nNEWID\t{CHARSFDPN[Kl];;;0} {CHARSFDPN[M];;;0}\r\nSHORTNAME\tDAB\r\nDATA\tKV completo\tKV breve\t\r\nLIMITIND\t0\t0\r\nLIMIT\tTminfluido\t1\t[P]\t6\t32\t0\t\t-15\t-15\r\nLIMIT\tTmaxfluido\t1\t[P]\t6\t32\t0\t\t110\t110\r\nLIMIT\tTmaxambiente\t1\t[P]\t6\t32\t0\t\t40\t40\r\nPAGENO\t4\r\nSERIES\tKV 3 - KV 6 - KV 10\r\nDATASHEET\tDAB - scheda tecnica pompe 60Hz\tDAB - hydraulic\tDAB - dimension  -\t\t\r\nPERFORMANCECHART\t\tKV 10\r\nTYPE\t3\tAll\t\r\nSAFETYMARGIN\t5\t1\t0\t1\r\nRESISTANCE\t0\r\nMATERIALKEY\tKV\t0\r\nGRIDCOLUMNS\tARTNR[P]\r\nGRIDCOLUMNS\tNAME[DNs]\r\nGRIDCOLUMNS\tNAME[DNd]\r\nGRIDCOLUMNS\tPOLES[M]\r\nGRIDCOLUMNS\tPOWER[M]\r\nGRIDCOLUMNS\tSPEED[M]\r\nMEASUREMENT\tB\t155\r\nMEASUREMENT\tC\t111\r\nMEASUREMENT\tD\t100\r\nMEASUREMENT\tDNA\t1\" 1/4 NPT\r\nMEASUREMENT\tDNM\t1\" 1/4 NPT\r\nMEASUREMENT\tG\t127\r\nMEASUREMENT\tH\t587\r\nMEASUREMENT\tH1\t60\r\nMEASUREMENT\tH2\t280\r\nMEASUREMENT\tI\t11\r\nOPTION\t1\r\nORIFICELIMIT\t0,1\t0,9\t0\r\n\r\nOBJECT\tINSTALLATION\r\nIDENT\tPompe ad asse verticale\r\nSHORTNAME\tDAB\r\nFILENAME\tKV 3-6-10_ingombro\r\nLIMITIND\t0\t0\r\nLIMIT\tMEDT\t1\t[AW]\t6\t11\t1\t\t-15\t110\r\nWEIGHTFORMULA\t$Wg := if (( POWER[M] = 1,1 ) and ( CHARSFDPN[M] = M )) then 24,4\r\nWEIGHTFORMULA\t$Wg := if (( POWER[M] = 1,1 ) and ( CHARSFDPN[M] = T )) then 23,1\r\nWEIGHTFORMULA\t$Wg := if (( POWER[M] = 1,5 ) and ( CHARSFDPN[M] = M )) then 26,6\r\nWEIGHTFORMULA\t$Wg := if (( POWER[M] = 1,5 ) and ( CHARSFDPN[M] = T )) then 24,6\r\nWEIGHTFORMULA\t$Wg := if (( POWER[M] = 1,85 ) and ( CHARSFDPN[M] = M )) then 29,5\r\nWEIGHTFORMULA\t$Wg := if (( POWER[M] = 1,85 ) and ( CHARSFDPN[M] = T )) then 27,9\r\nWEIGHTFORMULA\t$Wg := if POWER[M] = 2,2  then 30,1\r\nFIELDS\t\t0\t0\r\nHIDECOMP\t[AV]\r\nHIDECOMP\t[DN]\r\nHIDECOMP\t[DNd]\r\nHIDECOMP\t[DNs]\r\nHIDECOMP\t[M]\r\nHIDECOMP\t[Ws]\r\nFORMULA\tB := B[P]\r\nFORMULA\t\r\nFORMULA\tC := if (( POWER[M] = 1,1 ) and ( CHARSFDPN[M] = M )) then 111\r\nFORMULA\tC := if (( POWER[M] = 1,1 ) and ( CHARSFDPN[M] = T )) then 111\r\nFORMULA\tC := if (( POWER[M] = 1,5 ) and ( CHARSFDPN[M] = M )) then 116\r\nFORMULA\tC := if (( POWER[M] = 1,5 ) and ( CHARSFDPN[M] = T )) then 111\r\nFORMULA\tC := if (( POWER[M] = 1,85 ) and ( CHARSFDPN[M] = M )) then 116\r\nFORMULA\tC := if (( POWER[M] = 1,85 ) and ( CHARSFDPN[M] = T )) then 111\r\nFORMULA\tC := if POWER[M] = 2,2  then 116\r\nFORMULA\t\r\nFORMULA\tD := D[P]\r\nFORMULA\tG := G[P]\r\nFORMULA\tI := I[P]\r\nFORMULA\t\r\nFORMULA\tH :=  if POWER[M] = 1,1 then 587\r\nFORMULA\tH :=  if POWER[M] = 1,5 then 619\r\nFORMULA\tH :=  if POWER[M] = 1,85 then 725\r\nFORMULA\tH :=  if POWER[M] = 2,2 then 789\r\nFORMULA\tH :=  if M_I[M]  = 10,4 then 693\r\nFORMULA\tH1 := H1[P]\r\nFORMULA\t\r\nFORMULA\tH2 :=  if POWER[M] = 1,1 then 280\r\nFORMULA\tH2 :=  if POWER[M] = 1,5 then 312\r\nFORMULA\tH2 :=  if POWER[M] = 1,85 then 344\r\nFORMULA\tH2 :=  if POWER[M] = 2,2 then 408\r\nFORMULA\t\r\nFORMULA\tDNA := DNA[P]\r\nFORMULA\tDNM := DNM[P]\r\nPRICEALLOC\tP\t0\t{RESULTID[P];;;0} {FREQ[M];;Hz;1}\t\t\t\t\t\t\t\t\t\r\nZUSEIAVTOGUI\t1\r\n$\r\n\r\nOBJECT\tFLANGES\r\nIDENT\t1 \" 1/4\r\nSHORTNAME\tDAB\r\nLIMITIND\t0\t0\r\nLIMIT\tFREQ\t0\t[M]\t0\t11\t0\t\t50\r\nSUCTIONSIDE\t1 \" 1/4\r\nDISCHARGESIDE\t1 \" 1/4\r\nVALUES\tPN/DN\t18 bar (1800 kPa)\r\nVALUESSUCT\tPN/DN\t18 bar (1800 kPa)\r\n$\r\n\r\nOBJECT\tFLANGES\r\nIDENT\t1 \" 1/4 NPT\r\nSHORTNAME\tDAB\r\nLIMITIND\t0\t0\r\nLIMIT\tFREQ\t0\t[M]\t0\t11\t0\t\t60\r\nSUCTIONSIDE\t1 \" 1/4 NPT\r\nDISCHARGESIDE\t1 \" 1/4 NPT\r\nVALUES\tPN/DN\t18 bar (1800 kPa)\r\nVALUESSUCT\tPN/DN\t18 bar (1800 kPa)\r\n$\r\n\r\nOBJECT\tCHECK\r\n$\r\n\r\nOBJECT\tUSERINFO\r\nIDENT\tFoto\r\nSHORTNAME\tDAB\r\nFILENAME\tKV 3-6-10_foto\r\n$\r\n\r\nOBJECT\tUSERINFO\r\nIDENT\tCatalogo tecnico\r\nSHORTNAME\tDAB\r\nFILENAME\tKV 3-KV 6-KV 10_09.pdf\r\nLIMITIND\t0\t0\r\nLIMIT\tFREQ\t0\t[M]\t0\t11\t0\t\t50\r\n$\r\n\r\nOBJECT\tUSERINFO\r\nIDENT\tLibretto\r\nSHORTNAME\tDAB\r\nFILENAME\tCod_001355005.pdf\r\n$\r\n\r\nOBJECT\tUSERINFO\r\nIDENT\tDichiarazione di conformita\r\nSHORTNAME\tDAB\r\nFILENAME\tCod_60164947.pdf\r\n$\r\n\r\nOBJECT\tUSERINFO\r\nIDENT\tAggiunta al manuale\r\nSHORTNAME\tDAB\r\nFILENAME\tCod_001355006.pdf\r\nLIMITIND\t0\t0\r\nLIMIT\tFREQ\t0\t[M]\t0\t11\t0\t\t60\r\n$\r\n$\r","-",11,"2016-09-16 17:01:00.541","-"]
["TPumpObj","DAB","NKM-G NKP-G my11","-","-","NKP-G 80-200","ALL","\r\nOBJECT\tPUMP\r\nIDENT\tNKP-G 80-200\r\nNEWID\t{NAME[Kg];;;0}/{D2IMP[Kl];;mm;0}/{Matcd[Ws];;;0}/{MATCODE[WD];;;0}/{Power[M];;kW;0;;;;;;,}/{POLES[M];;;0} {NEWID1[M];;;0}\r\nSHORTNAME\tDAB\r\nDATA\tNKM-G Completo\tNKM-G breve\tKDN suggerimento\r\nLIMITIND\t0\t0\r\nLIMIT\tTminfluido\t1\t[P]\t6\t32\t0\t\t-10\t-10\r\nLIMIT\tTmaxfluido\t1\t[P]\t6\t32\t0\t\t140\t140\r\nLIMIT\tTmaxambiente\t1\t[P]\t6\t32\t0\t\t40\t40\r\nPAGENO\t5\r\nSERIES\tNKM-G NKP-G my11\r\nDATASHEET\tDAB - scheda tecnica pompe centrifughe norm. Tenute Speciali no brand mot MEI\tDAB - hydraulic\tDAB - dimension  -\t\t\r\nPERFORMANCECHART\tNKP-G 80-200\t\r\nTYPE\t3\tAll\t\r\nSAFETYMARGIN\t5\t1\t0\t1\r\nPHASE\t3\r\nRESISTANCE\t0\r\nMATERIALKEY\tNKM-G_tenute speciali\t0\r\nGRIDCOLUMNS\tARTNR[P]\r\nGRIDCOLUMNS\tNAME[DNs]\r\nGRIDCOLUMNS\tNAME[DNd]\r\nGRIDCOLUMNS\tPOLES[M]\r\nGRIDCOLUMNS\tPOWER[M]\r\nGRIDCOLUMNS\tSPEED[M]\r\nMEASUREMENT\t**\t-\r\nMEASUREMENT\tA\t125\r\nMEASUREMENT\tB\t65\r\nMEASUREMENT\tDNA\t100\r\nMEASUREMENT\tDNM\t80\r\nMEASUREMENT\tE\t305\r\nMEASUREMENT\tF\t640\r\nMEASUREMENT\tG\t400\r\nMEASUREMENT\tH1\t180\r\nMEASUREMENT\tH2\t250\r\nMEASUREMENT\tH3\t20\r\nMEASUREMENT\tL\t398\r\nMEASUREMENT\tM1\t125\r\nMEASUREMENT\tM2\t95\r\nMEASUREMENT\tN1\t345\r\nMEASUREMENT\tN2\t280\r\nMEASUREMENT\tN3\t318\r\nMEASUREMENT\tS1\tM12\r\nMEASUREMENT\tS2\tM16\r\nMEASUREMENT\tW\t406\r\nMEASUREMENT\tX\t140\r\nOPTION\t1\r\nORIFICELIMIT\t0,1\t0,9\t0\r\n\r\nOBJECT\tINSTALLATION\r\nIDENT\tPompa monoblocco B3/B5\r\nNEWID\tMY11\r\nSHORTNAME\tDAB\r\nFILENAME\tB3-B5_H3\r\nWEIGHT\t377\r\nLIMITIND\t0\t0\r\nLIMIT\tMEDT\t1\t[AW]\t6\t11\t1\t\t-10\t140\r\nWEIGHTFORMULA\t$Wg := if NEWID1[M] = IE2 then --\r\nWEIGHTFORMULA\t$Wg := if NEWID1[M] = IE3 then 374\r\nWEIGHTFORMULA\t\r\nACCSALLOC\tNKM-G NKP-G\r\nFIELDS\t\t0\t0\r\nHIDECOMP\t[AV]\r\nHIDECOMP\t[DN]\r\nHIDECOMP\t[DNd]\r\nHIDECOMP\t[DNs]\r\nHIDECOMP\t[M]\r\nHIDECOMP\t[WD]\r\nHIDECOMP\t[Ws]\r\nSEAL\tDAB\tTenuta meccanica\tBAQE\t\t\t\r\nSEAL\tDAB\tTenuta meccanica\tBQQE\t\t\t\r\nSEAL\tDAB\tTenuta meccanica\tBQQV\t\t\t\r\nSEAL\tDAB\tTenuta meccanica\tBAQV\t\t\t\r\nFORMULA\tA := A[P]\r\nFORMULA\tB := B[P]\r\nFORMULA\tE := E[P]\r\nFORMULA\tF := if NEWID1[M] = IE2 then --\r\nFORMULA\tF := if NEWID1[M] = IE3 then 670\r\nFORMULA\tG := G[P]\r\nFORMULA\tH1 :=  H1[P]\r\nFORMULA\tH2 := H2[P]\r\nFORMULA\tL := L[P]\r\nFORMULA\tM1 := M1[P]\r\nFORMULA\tM2 := M2[P]\r\nFORMULA\tN1 := N1[P]\r\nFORMULA\tN2 := N2[P]\r\nFORMULA\tS1 := S1[P]\r\nFORMULA\tW := W[P]\r\nFORMULA\tX := X[P]\r\nFORMULA\tDNA := DNA[P]\r\nFORMULA\tDNM := DNM[P]\r\nFORMULA\tS2 := S2[P]\r\nFORMULA\tN3 := N3[P]\r\nFORMULA\tH3 := H3[P]\r\nPRICEALLOC\tP\t0\t{NAME[Kg];;;0}/{D2IMP[Kl];;mm;0}/{Matcd[Ws];;;0}/{MATCODE[WD];;;0}/{Power[M];;kW;0;;;;;;,}/{POLES[M];;;0} {CHARSFDPN[AV];;;0} {FREQ[M];;Hz;1} {NEWID1[M];;;0}\t\t\t\t\t\t\t\t\t0\r\nZUSEIAVTOGUI\t1\r\n$\r\n\r\nOBJECT\tFLANGES\r\nIDENT\tDN 100 / DN 80\r\nSHORTNAME\tDAB\r\nSUCTIONSIDE\tDN 100\r\nDISCHARGESIDE\tDN 80\r\nVALUES\tDIN 2533\tPN 16\r\nVALUESSUCT\tDIN 2533\tPN 16\r\n$\r\n\r\nOBJECT\tCHECK\r\n$\r\n\r\nOBJECT\tUSERINFO\r\nIDENT\tFoto\r\nSHORTNAME\tDAB\r\nFILENAME\tnkm-g nkp-g_foto\r\n$\r\n\r\nOBJECT\tUSERINFO\r\nIDENT\tComponenti speciali a richiesta\r\nSHORTNAME\tDAB\r\nDATA\tComponenti speciali a richiesta - normalizzate monoblocco\t\t\r\n$\r\n\r\nOBJECT\tUSERINFO\r\nIDENT\tLibretto\r\nSHORTNAME\tDAB\r\nFILENAME\tCod_001354001.pdf\r\n$\r\n\r\nOBJECT\tUSERINFO\r\nIDENT\tDichiarazione di conformita\r\nSHORTNAME\tDAB\r\nFILENAME\tCod_60164947.pdf\r\n$\r\n\r\nOBJECT\tUSERINFO\r\nIDENT\tCAD\r\nSHORTNAME\tDAB\r\nFILENAME\tNKP-G 80.htm\r\n$\r\n\r\nOBJECT\tUSERINFO\r\nIDENT\tCatalogo tecnico\r\nSHORTNAME\tDAB\r\nFILENAME\tCAT14_NKM-G_NKP-G.pdf\r\n$\r\n$\r","-",11,"2016-09-02 13:44:26.406","-"]
["TPumpObj","DAB","NKV 32-45-65-95 my15","-","-","NKV 65","ALL","\r\nOBJECT\tPUMP\r\nIDENT\tNKV 65\r\nNEWID\t{NAME[Kl];;;0} T\r\nSHORTNAME\tDAB\r\nDATA\tNKV 32-45 completo\tNKV 32-45 breve\t\r\nLIMITIND\t0\t0\r\nLIMIT\tMEDT\t1\t[AW]\t6\t11\t1\t\t-20\t90\r\nLIMIT\ttminfluido\t1\t[P]\t6\t32\t0\t\t-15\t-15\r\nLIMIT\ttmaxfluido\t1\t[P]\t6\t32\t0\t\t120\t120\r\nLIMIT\tTmaxambiente\t1\t[P]\t6\t32\t0\t\t40\t40\r\nLIMIT\tPressioneMax\t1\t[P]\t9\t32\t0\t\t2,5\t2,5\r\nSERIES\tNKV 32-45-65-95 my15\r\nDATASHEET\tDAB - scheda tecnica pompe centrifughe verticali no brand mot MEI\tDAB - hydraulic\tDAB - dimension  -\t\t\r\nPERFORMANCECHART\t\tNKV 65\r\nTYPE\t3\tAll\t\r\nSAFETYMARGIN\t5\t1\t0\t1\r\nRESISTANCE\t0\r\nMATERIALKEY\tNKV 32-45\t0\r\nGRIDCOLUMNS\tARTNR[P]\r\nGRIDCOLUMNS\tNAME[DNd]\r\nGRIDCOLUMNS\tPOLES[M]\r\nGRIDCOLUMNS\tPOWER[M]\r\nMEASUREMENT\tB1\t240\r\nMEASUREMENT\tB2\t316\r\nMEASUREMENT\tC\t198\r\nMEASUREMENT\tD\t365\r\nMEASUREMENT\tDNA\tDN 100\r\nMEASUREMENT\tDNM\tDN 100\r\nMEASUREMENT\tG1\t190\r\nMEASUREMENT\tG2\t265\r\nMEASUREMENT\tH\t1354\r\nMEASUREMENT\tH1\t140\r\nMEASUREMENT\tH2\t849,2\r\nMEASUREMENT\tX\t230\r\nMEASUREMENT\tY\t180\r\nMEASUREMENT\tZ\t100\r\nOPTION\t0\r\nORIFICELIMIT\t0,1\t0,9\t0\r\n\r\nOBJECT\tINSTALLATION\r\nIDENT\tNKV\r\nNEWID\tMY15\r\nSHORTNAME\tDAB\r\nFILENAME\tNKV 65-95 60Hz.dxf\r\nWEIGHTFORMULA\t$Wg := if (POWER[M] = 15) then 222,5\r\nWEIGHTFORMULA\t$Wg := if (POWER[M] = 18,5) then 243,5\r\nWEIGHTFORMULA\t$Wg := if ((POWER[M] = 22) and (P_STG[Kl] = 2)) then 274\r\nWEIGHTFORMULA\t$Wg := if ((POWER[M] = 22) and (P_STG[Kl] = 3)) then 278,5\r\nWEIGHTFORMULA\t$Wg := if (POWER[M] = 30) then 340,5\r\nWEIGHTFORMULA\t$Wg := if (POWER[M] = 37) then 362\r\nWEIGHTFORMULA\t$Wg := if ((POWER[M] = 45) and (P_STG[Kl] = 4)) then 420\r\nWEIGHTFORMULA\t$Wg := if ((POWER[M] = 45) and (P_STG[Kl] = 5)) then 424,5\r\nACCSALLOC\tNKV\r\nFIELDS\t\t0\t0\r\nHIDECOMP\t[AV]\r\nHIDECOMP\t[DN]\r\nHIDECOMP\t[DNd]\r\nHIDECOMP\t[DNs]\r\nHIDECOMP\t[M]\r\nHIDECOMP\t[Ws]\r\nFORMULA\tB1 := B1[P]\r\nFORMULA\tB2 := B2[P]\r\nFORMULA\tC := if (POWER[M] = 15) then 198\r\nFORMULA\tC := if ((POWER[M] >= 18,5) and (POWER[M] <= 22)) then 238\r\nFORMULA\tC := if ((POWER[M] >= 30) and (POWER[M] <= 37)) then 300\r\nFORMULA\tC := if (POWER[M] >= 45) then 335\r\nFORMULA\t\r\nFORMULA\tD := D[P]\r\nFORMULA\tG1 := G1[P]\r\nFORMULA\tG2 := G2[P]\r\nFORMULA\tH := if (POWER[M] = 15) then 1354\r\nFORMULA\tH := if (POWER[M] = 18,5) then 1409\r\nFORMULA\tH := if ((POWER[M] = 22) and (P_STG[Kl] = 2)) then 1429\r\nFORMULA\tH := if ((POWER[M] = 22) and (P_STG[Kl] = 3)) then 1521,3\r\nFORMULA\tH := if (POWER[M] = 30) then 1606,3\r\nFORMULA\tH := if (POWER[M] = 37) then 1698,4\r\nFORMULA\tH := if ((POWER[M] = 45) and (P_STG[Kl] = 4)) then 1743,4\r\nFORMULA\tH := if ((POWER[M] = 45) and (P_STG[Kl] = 5)) then 1835,5\r\nFORMULA\tH1 := H1[P]\r\nFORMULA\tH2 := if (P_STG[Kl] = 2) then 849,2\r\nFORMULA\tH2 := if (CHARSFDPN[Kl] = 36#45#2) then 941,3\r\nFORMULA\tH2 := if (CHARSFDPN[Kl] = 36) then 946,3\r\nFORMULA\tH2 := if (P_STG[Kl] = 4) then 1038,4\r\nFORMULA\tH2 := if (P_STG[Kl] = 5) then 1130,5\r\nFORMULA\tX := X[P]\r\nFORMULA\tZ := Z[P]\r\nFORMULA\tDNA := DNA[P]\r\nFORMULA\tDNM := DNM[P]\r\nFORMULA\tY := Y[P]\r\nPRICEALLOC\tP\t0\t{RESULTID[P];;;0} MY15 {FREQ[M];;Hz;1}\t\t\t\t\t\t\t\t\t0\r\nZUSEIAVTOGUI\t1\r\n$\r\n\r\nOBJECT\tINSTALLATION\r\nIDENT\tSolo parte idraulica\r\nSHORTNAME\tDAB\r\nFILENAME\tNKV 65-95 idr 60Hz\r\nWEIGHTFORMULA\t$Wg := if ((P_STG[Kl] = 2) and (SPEED[Kl] = 2930)) then -\r\nWEIGHTFORMULA\t$Wg := if ((P_STG[Kl] = 2) and (SPEED[Kl] = 2940)) then -\r\nWEIGHTFORMULA\t$Wg := if ((P_STG[Kl] = 3) and (SPEED[Kl] = 2940)) then -\r\nWEIGHTFORMULA\t$Wg := if ((P_STG[Kl] = 3) and (SPEED[Kl] = 2960)) then -\r\nWEIGHTFORMULA\t$Wg := if P_STG[Kl] = 4 then -\r\nWEIGHTFORMULA\t$Wg := if P_STG[Kl] = 5 then -\r\nWEIGHTFORMULA\t$Wg := if P_STG[Kl] = 6 then -\r\nACCSALLOC\tNKV\r\nFIELDS\t\t0\t0\r\nHIDECOMP\t[AV]\r\nHIDECOMP\t[DN]\r\nHIDECOMP\t[DNd]\r\nHIDECOMP\t[DNs]\r\nHIDECOMP\t[Ws]\r\nFORMULA\tD := D[P]\r\nFORMULA\tH1 := H1[P]\r\nFORMULA\t\r\nFORMULA\tH2 := if (P_STG[Kl] = 2) then 849,2\r\nFORMULA\tH2 := if (CHARSFDPN[Kl] = 36#45#2) then 941,3\r\nFORMULA\tH2 := if (CHARSFDPN[Kl] = 36) then 946,3\r\nFORMULA\tH2 := if (P_STG[Kl] = 4) then 1038,4\r\nFORMULA\tH2 := if (P_STG[Kl] = 5) then 1130,5\r\nFORMULA\tX := X[P]\r\nFORMULA\tZ := Z[P]\r\nFORMULA\tDNA := DNA[P]\r\nFORMULA\tDNM := DNM[P]\r\nFORMULA\tY := Y[P]\r\nPRICEALLOC\tP\t0\t{P_CID[Kl];;;0} MY15\t\t\t\t\t\t\t\t\t0\r\nDONTSELECT\t[M]\r\nZUSEIAVTOGUI\t1\r\n$\r\n\r\nOBJECT\tFLANGES\r\nIDENT\tDN 100 / DN 100\r\nSHORTNAME\tDAB\r\nSUCTIONSIDE\tDN 100\r\nDISCHARGESIDE\tDN 100\r\nVALUES\tPN/DN\tPN 25\r\nVALUESSUCT\tPN/DN\tPN 25\r\n$\r\n\r\nOBJECT\tCHECK\r\n$\r\n\r\nOBJECT\tUSERINFO\r\nIDENT\tFoto\r\nSHORTNAME\tDAB\r\nFILENAME\tNKV 65-95\r\n$\r\n\r\nOBJECT\tUSERINFO\r\nIDENT\tLibretto\r\nSHORTNAME\tDAB\r\nFILENAME\tCod_60113932.pdf\r\n$\r\n\r\nOBJECT\tUSERINFO\r\nIDENT\tCatalogo tecnico\r\nSHORTNAME\tDAB\r\nFILENAME\tCAT15_NKV 60Hz.pdf\r\nLIMITIND\t0\t0\r\nLIMIT\tFREQ\t0\t[M]\t0\t11\t0\t\t50\r\n$\r\n\r\nOBJECT\tUSERINFO\r\nIDENT\tDichiarazione di conformita\r\nSHORTNAME\tDAB\r\nFILENAME\tCod_60164947.pdf\r\n$\r\n$\r","-",11,"2015-07-06 10:23:04.765","-"]

{"sheet":"Как должно получиться","index":1,"n_rows":11,"n_cols":26,"rows_kept":11,"cut":false,"hidden":false,"merged":[]}
["Наименование","A","B","B1","B2","DNA","DNM","E","F","G","H","H1","H2","H3","L","L1","L3","M1","M2","N1","N2","S1","S2","T","W","X"]
[{"$f":"Data!F2","v":"K 11/500"},{"$f":"NumFromText(Data!$H4,B$1)","v":"335\r"},{"$f":"NumFromText(Data!$H4,C$1)","v":"169\r"},{"$f":"NumFromText(Data!$H4,D$1)","v":""},{"$f":"NumFromText(Data!$H4,E$1)","v":""},{"$f":"NumFromText(Data!$H4,F$1)","v":"1\" 1/2\r"},{"$f":"NumFromText(Data!$H4,G$1)","v":"1\" 1/2\r"},{"$f":"NumFromText(Data!$H4,H$1)","v":"69\r"},{"$f":"NumFromText(Data!$H4,I$1)","v":"15\r"},{"$f":"NumFromText(Data!$H4,J$1)","v":"110\r"},{"$f":"NumFromText(Data!$H4,K$1)","v":"210\r"},{"$f":"NumFromText(Data!$H4,L$1)","v":"85\r"},{"$f":"NumFromText(Data!$H4,M$1)","v":"125\r"},{"$f":"NumFromText(Data!$H4,N$1)","v":""},{"$f":"NumFromText(Data!$H4,O$1)","v":""},{"$f":"NumFromText(Data!$H4,P$1)","v":""},{"$f":"NumFromText(Data!$H4,Q$1)","v":""},{"$f":"NumFromText(Data!$H4,R$1)","v":""},{"$f":"NumFromText(Data!$H4,S$1)","v":""},{"$f":"NumFromText(Data!$H4,T$1)","v":""},{"$f":"NumFromText(Data!$H4,U$1)","v":""},{"$f":"NumFromText(Data!$H4,V$1)","v":""},{"$f":"NumFromText(Data!$H4,W$1)","v":""},{"$f":"NumFromText(Data!$H4,X$1)","v":""},{"$f":"NumFromText(Data!$H4,Y$1)","v":""},{"$f":"NumFromText(Data!$H4,Z$1)","v":""}]
[{"$f":"Data!F3","v":"K 12/200"},{"$f":"NumFromText(Data!$H5,B$1)","v":"430\r"},{"$f":"NumFromText(Data!$H5,C$1)","v":"200\r"},{"$f":"NumFromText(Data!$H5,D$1)","v":""},{"$f":"NumFromText(Data!$H5,E$1)","v":""},{"$f":"NumFromText(Data!$H5,F$1)","v":"2\"\r"},{"$f":"NumFromText(Data!$H5,G$1)","v":"2\"\r"},{"$f":"NumFromText(Data!$H5,H$1)","v":"74\r"},{"$f":"NumFromText(Data!$H5,I$1)","v":""},{"$f":"NumFromText(Data!$H5,J$1)","v":"120\r"},{"$f":"NumFromText(Data!$H5,K$1)","v":"270\r"},{"$f":"NumFromText(Data!$H5,L$1)","v":"105\r"},{"$f":"NumFromText(Data!$H5,M$1)","v":"165\r"},{"$f":"NumFromText(Data!$H5,N$1)","v":""},{"$f":"NumFromText(Data!$H5,O$1)","v":""},{"$f":"NumFromText(Data!$H5,P$1)","v":""},{"$f":"NumFromText(Data!$H5,Q$1)","v":""},{"$f":"NumFromText(Data!$H5,R$1)","v":""},{"$f":"NumFromText(Data!$H5,S$1)","v":""},{"$f":"NumFromText(Data!$H5,T$1)","v":""},{"$f":"NumFromText(Data!$H5,U$1)","v":""},{"$f":"NumFromText(Data!$H5,V$1)","v":""},{"$f":"NumFromText(Data!$H5,W$1)","v":""},{"$f":"NumFromText(Data!$H5,X$1)","v":""},{"$f":"NumFromText(Data!$H5,Y$1)","v":""},{"$f":"NumFromText(Data!$H5,Z$1)","v":""}]
[{"$f":"Data!F4","v":"K 12/200 115V"},{"$f":"NumFromText(Data!$H6,B$1)","v":"655\r"},{"$f":"NumFromText(Data!$H6,C$1)","v":"270\r"},{"$f":"NumFromText(Data!$H6,D$1)","v":""},{"$f":"NumFromText(Data!$H6,E$1)","v":""},{"$f":"NumFromText(Data!$H6,F$1)","v":"2\" G\r"},{"$f":"NumFromText(Data!$H6,G$1)","v":"1\" 1/4 G\r"},{"$f":"NumFromText(Data!$H6,H$1)","v":"60\r"},{"$f":"NumFromText(Data!$H6,I$1)","v":"20\r"},{"$f":"NumFromText(Data!$H6,J$1)","v":"210\r"},{"$f":"NumFromText(Data!$H6,K$1)","v":"340\r"},{"$f":"NumFromText(Data!$H6,L$1)","v":"160\r"},{"$f":"NumFromText(Data!$H6,M$1)","v":"180\r"},{"$f":"NumFromText(Data!$H6,N$1)","v":""},{"$f":"NumFromText(Data!$H6,O$1)","v":""},{"$f":"NumFromText(Data!$H6,P$1)","v":""},{"$f":"NumFromText(Data!$H6,Q$1)","v":""},{"$f":"NumFromText(Data!$H6,R$1)","v":""},{"$f":"NumFromText(Data!$H6,S$1)","v":""},{"$f":"NumFromText(Data!$H6,T$1)","v":""},{"$f":"NumFromText(Data!$H6,U$1)","v":""},{"$f":"NumFromText(Data!$H6,V$1)","v":""},{"$f":"NumFromText(Data!$H6,W$1)","v":""},{"$f":"NumFromText(Data!$H6,X$1)","v":""},{"$f":"NumFromText(Data!$H6,Y$1)","v":""},{"$f":"NumFromText(Data!$H6,Z$1)","v":""}]
[{"$f":"Data!F5","v":"K 14/400"},{"$f":"NumFromText(Data!$H7,B$1)","v":"125\r"},{"$f":"NumFromText(Data!$H7,C$1)","v":"80\r"},{"$f":"NumFromText(Data!$H7,D$1)","v":""},{"$f":"NumFromText(Data!$H7,E$1)","v":""},{"$f":"NumFromText(Data!$H7,F$1)","v":"100\r"},{"$f":"NumFromText(Data!$H7,G$1)","v":"80\r"},{"$f":"NumFromText(Data!$H7,H$1)","v":""},{"$f":"NumFromText(Data!$H7,I$1)","v":"470\r"},{"$f":"NumFromText(Data!$H7,J$1)","v":""},{"$f":"NumFromText(Data!$H7,K$1)","v":""},{"$f":"NumFromText(Data!$H7,L$1)","v":"200\r"},{"$f":"NumFromText(Data!$H7,M$1)","v":"280\r"},{"$f":"NumFromText(Data!$H7,N$1)","v":""},{"$f":"NumFromText(Data!$H7,O$1)","v":"80\r"},{"$f":"NumFromText(Data!$H7,P$1)","v":""},{"$f":"NumFromText(Data!$H7,Q$1)","v":""},{"$f":"NumFromText(Data!$H7,R$1)","v":"160\r"},{"$f":"NumFromText(Data!$H7,S$1)","v":"120\r"},{"$f":"NumFromText(Data!$H7,T$1)","v":"400\r"},{"$f":"NumFromText(Data!$H7,U$1)","v":"315\r"},{"$f":"NumFromText(Data!$H7,V$1)","v":"M16\r"},{"$f":"NumFromText(Data!$H7,W$1)","v":"M12\r"},{"$f":"NumFromText(Data!$H7,X$1)","v":""},{"$f":"NumFromText(Data!$H7,Y$1)","v":"340\r"},{"$f":"NumFromText(Data!$H7,Z$1)","v":"140\r"}]
[{"$f":"Data!F6","v":"K 80/400"},{"$f":"NumFromText(Data!$H8,B$1)","v":"125\r"},{"$f":"NumFromText(Data!$H8,C$1)","v":""},{"$f":"NumFromText(Data!$H8,D$1)","v":""},{"$f":"NumFromText(Data!$H8,E$1)","v":"610\r"},{"$f":"NumFromText(Data!$H8,F$1)","v":"125\r"},{"$f":"NumFromText(Data!$H8,G$1)","v":"80\r"},{"$f":"NumFromText(Data!$H8,H$1)","v":""},{"$f":"NumFromText(Data!$H8,I$1)","v":""},{"$f":"NumFromText(Data!$H8,J$1)","v":""},{"$f":"NumFromText(Data!$H8,K$1)","v":"100\r"},{"$f":"NumFromText(Data!$H8,L$1)","v":"250\r"},{"$f":"NumFromText(Data!$H8,M$1)","v":"315\r"},{"$f":"NumFromText(Data!$H8,N$1)","v":"350\r"},{"$f":"NumFromText(Data!$H8,O$1)","v":""},{"$f":"NumFromText(Data!$H8,P$1)","v":"1400\r"},{"$f":"NumFromText(Data!$H8,Q$1)","v":"940\r"},{"$f":"NumFromText(Data!$H8,R$1)","v":""},{"$f":"NumFromText(Data!$H8,S$1)","v":""},{"$f":"NumFromText(Data!$H8,T$1)","v":""},{"$f":"NumFromText(Data!$H8,U$1)","v":""},{"$f":"NumFromText(Data!$H8,V$1)","v":""},{"$f":"NumFromText(Data!$H8,W$1)","v":""},{"$f":"NumFromText(Data!$H8,X$1)","v":""},{"$f":"NumFromText(Data!$H8,Y$1)","v":""},{"$f":"NumFromText(Data!$H8,Z$1)","v":""}]
[{"$f":"Data!F7","v":"KDN 80-250"},{"$f":"NumFromText(Data!$H9,B$1)","v":""},{"$f":"NumFromText(Data!$H9,C$1)","v":"155\r"},{"$f":"NumFromText(Data!$H9,D$1)","v":""},{"$f":"NumFromText(Data!$H9,E$1)","v":""},{"$f":"NumFromText(Data!$H9,F$1)","v":"1\" 1/4 NPT\r"},{"$f":"NumFromText(Data!$H9,G$1)","v":"1\" 1/4 NPT\r"},{"$f":"NumFromText(Data!$H9,H$1)","v":""},{"$f":"NumFromText(Data!$H9,I$1)","v":""},{"$f":"NumFromText(Data!$H9,J$1)","v":"127\r"},{"$f":"NumFromText(Data!$H9,K$1)","v":"587\r"},{"$f":"NumFromText(Data!$H9,L$1)","v":"60\r"},{"$f":"NumFromText(Data!$H9,M$1)","v":"280\r"},{"$f":"NumFromText(Data!$H9,N$1)","v":""},{"$f":"NumFromText(Data!$H9,O$1)","v":""},{"$f":"NumFromText(Data!$H9,P$1)","v":""},{"$f":"NumFromText(Data!$H9,Q$1)","v":""},{"$f":"NumFromText(Data!$H9,R$1)","v":""},{"$f":"NumFromText(Data!$H9,S$1)","v":""},{"$f":"NumFromText(Data!$H9,T$1)","v":""},{"$f":"NumFromText(Data!$H9,U$1)","v":""},{"$f":"NumFromText(Data!$H9,V$1)","v":""},{"$f":"NumFromText(Data!$H9,W$1)","v":""},{"$f":"NumFromText(Data!$H9,X$1)","v":""},{"$f":"NumFromText(Data!$H9,Y$1)","v":""},{"$f":"NumFromText(Data!$H9,Z$1)","v":""}]
[{"$f":"Data!F8","v":"KDN 80-330"},{"$f":"NumFromText(Data!$H10,B$1)","v":"125\r"},{"$f":"NumFromText(Data!$H10,C$1)","v":"65\r"},{"$f":"NumFromText(Data!$H10,D$1)","v":""},{"$f":"NumFromText(Data!$H10,E$1)","v":""},{"$f":"NumFromText(Data!$H10,F$1)","v":"100\r"},{"$f":"NumFromText(Data!$H10,G$1)","v":"80\r"},{"$f":"NumFromText(Data!$H10,H$1)","v":"305\r"},{"$f":"NumFromText(Data!$H10,I$1)","v":"640\r"},{"$f":"NumFromText(Data!$H10,J$1)","v":"400\r"},{"$f":"NumFromText(Data!$H10,K$1)","v":""},{"$f":"NumFromText(Data!$H10,L$1)","v":"180\r"},{"$f":"NumFromText(Data!$H10,M$1)","v":"250\r"},{"$f":"NumFromText(Data!$H10,N$1)","v":"20\r"},{"$f":"NumFromText(Data!$H10,O$1)","v":"398\r"},{"$f":"NumFromText(Data!$H10,P$1)","v":""},{"$f":"NumFromText(Data!$H10,Q$1)","v":""},{"$f":"NumFromText(Data!$H10,R$1)","v":"125\r"},{"$f":"NumFromText(Data!$H10,S$1)","v":"95\r"},{"$f":"NumFromText(Data!$H10,T$1)","v":"345\r"},{"$f":"NumFromText(Data!$H10,U$1)","v":"280\r"},{"$f":"NumFromText(Data!$H10,V$1)","v":"M12\r"},{"$f":"NumFromText(Data!$H10,W$1)","v":"M16\r"},{"$f":"NumFromText(Data!$H10,X$1)","v":""},{"$f":"NumFromText(Data!$H10,Y$1)","v":"406\r"},{"$f":"NumFromText(Data!$H10,Z$1)","v":"140\r"}]
[{"$f":"Data!F9","v":"KV 10"},{"$f":"NumFromText(Data!$H11,B$1)","v":""},{"$f":"NumFromText(Data!$H11,C$1)","v":""},{"$f":"NumFromText(Data!$H11,D$1)","v":"240\r"},{"$f":"NumFromText(Data!$H11,E$1)","v":"316\r"},{"$f":"NumFromText(Data!$H11,F$1)","v":"DN 100\r"},{"$f":"NumFromText(Data!$H11,G$1)","v":"DN 100\r"},{"$f":"NumFromText(Data!$H11,H$1)","v":""},{"$f":"NumFromText(Data!$H11,I$1)","v":""},{"$f":"NumFromText(Data!$H11,J$1)","v":""},{"$f":"NumFromText(Data!$H11,K$1)","v":"1354\r"},{"$f":"NumFromText(Data!$H11,L$1)","v":"140\r"},{"$f":"NumFromText(Data!$H11,M$1)","v":"849,2\r"},{"$f":"NumFromText(Data!$H11,N$1)","v":""},{"$f":"NumFromText(Data!$H11,O$1)","v":""},{"$f":"NumFromText(Data!$H11,P$1)","v":""},{"$f":"NumFromText(Data!$H11,Q$1)","v":""},{"$f":"NumFromText(Data!$H11,R$1)","v":""},{"$f":"NumFromText(Data!$H11,S$1)","v":""},{"$f":"NumFromText(Data!$H11,T$1)","v":""},{"$f":"NumFromText(Data!$H11,U$1)","v":""},{"$f":"NumFromText(Data!$H11,V$1)","v":""},{"$f":"NumFromText(Data!$H11,W$1)","v":""},{"$f":"NumFromText(Data!$H11,X$1)","v":""},{"$f":"NumFromText(Data!$H11,Y$1)","v":""},{"$f":"NumFromText(Data!$H11,Z$1)","v":"230\r"}]
[{"$f":"Data!F10","v":"NKP-G 80-200"},{"$f":"NumFromText(Data!$H12,B$1)","v":""},{"$f":"NumFromText(Data!$H12,C$1)","v":""},{"$f":"NumFromText(Data!$H12,D$1)","v":""},{"$f":"NumFromText(Data!$H12,E$1)","v":""},{"$f":"NumFromText(Data!$H12,F$1)","v":""},{"$f":"NumFromText(Data!$H12,G$1)","v":""},{"$f":"NumFromText(Data!$H12,H$1)","v":""},{"$f":"NumFromText(Data!$H12,I$1)","v":""},{"$f":"NumFromText(Data!$H12,J$1)","v":""},{"$f":"NumFromText(Data!$H12,K$1)","v":""},{"$f":"NumFromText(Data!$H12,L$1)","v":""},{"$f":"NumFromText(Data!$H12,M$1)","v":""},{"$f":"NumFromText(Data!$H12,N$1)","v":""},{"$f":"NumFromText(Data!$H12,O$1)","v":""},{"$f":"NumFromText(Data!$H12,P$1)","v":""},{"$f":"NumFromText(Data!$H12,Q$1)","v":""},{"$f":"NumFromText(Data!$H12,R$1)","v":""},{"$f":"NumFromText(Data!$H12,S$1)","v":""},{"$f":"NumFromText(Data!$H12,T$1)","v":""},{"$f":"NumFromText(Data!$H12,U$1)","v":""},{"$f":"NumFromText(Data!$H12,V$1)","v":""},{"$f":"NumFromText(Data!$H12,W$1)","v":""},{"$f":"NumFromText(Data!$H12,X$1)","v":""},{"$f":"NumFromText(Data!$H12,Y$1)","v":""},{"$f":"NumFromText(Data!$H12,Z$1)","v":""}]
[{"$f":"Data!F11","v":"NKV 65"},{"$f":"NumFromText(Data!$H13,B$1)","v":""},{"$f":"NumFromText(Data!$H13,C$1)","v":""},{"$f":"NumFromText(Data!$H13,D$1)","v":""},{"$f":"NumFromText(Data!$H13,E$1)","v":""},{"$f":"NumFromText(Data!$H13,F$1)","v":""},{"$f":"NumFromText(Data!$H13,G$1)","v":""},{"$f":"NumFromText(Data!$H13,H$1)","v":""},{"$f":"NumFromText(Data!$H13,I$1)","v":""},{"$f":"NumFromText(Data!$H13,J$1)","v":""},{"$f":"NumFromText(Data!$H13,K$1)","v":""},{"$f":"NumFromText(Data!$H13,L$1)","v":""},{"$f":"NumFromText(Data!$H13,M$1)","v":""},{"$f":"NumFromText(Data!$H13,N$1)","v":""},{"$f":"NumFromText(Data!$H13,O$1)","v":""},{"$f":"NumFromText(Data!$H13,P$1)","v":""},{"$f":"NumFromText(Data!$H13,Q$1)","v":""},{"$f":"NumFromText(Data!$H13,R$1)","v":""},{"$f":"NumFromText(Data!$H13,S$1)","v":""},{"$f":"NumFromText(Data!$H13,T$1)","v":""},{"$f":"NumFromText(Data!$H13,U$1)","v":""},{"$f":"NumFromText(Data!$H13,V$1)","v":""},{"$f":"NumFromText(Data!$H13,W$1)","v":""},{"$f":"NumFromText(Data!$H13,X$1)","v":""},{"$f":"NumFromText(Data!$H13,Y$1)","v":""},{"$f":"NumFromText(Data!$H13,Z$1)","v":""}]